Workbook

Sheet README
A10: TOPIC: | B10: GP Cluster Profiles | D10: Contents (click links to access):
A11: SUBJECT: | B11: Age/sex breakdown | D11: Chart
A12: SOURCE: | B12: GP registrations data: Welsh Demographic Service (WDS), NHS Wales Informatics Service (NWIS) | D12: How to copy tables and charts
B13: GP registrations data: English residents provided by PCTs/CCGs
A14: GEOGRAPHY: | B14: GP clusters in Wales
A15: PERIOD: | B15: WDS data extract from September 2012; English registrations received between October 2012 and May 2013
A16: DEMOGRAPHY: | B16: Persons registered with GP practices which form the clusters in Wales
A17: STATISTICS: | B17: Counts, percentages
A18: NOTES: | B18: This file provides supporting data for the Observatory's GP Cluster Profiles.
B19: Details of the data source, method, caveats and notes on interpretation are available from the technical guide that accompanies these profiles.
B20: The profiles and technical guide are available here:
B21: http://www.publichealthwalesobservatory.wales.nhs.uk/gpclusters

Sheet Copy tables and charts
M2: Figure 1
A7: Copying and pasting charts and tables to use in documents, reports or presentations
A9: Why use this method to copy and paste charts
A10: If the standard {Copy} and {Paste} option is used for inserting Excel charts into documents, reports
A11: or presentations then frequently the chart will lose some of its formatting and/or the axes labels may be
A12: truncated. Similarly, table column sizes are often distorted using the standard {Copy} and {Paste}
A13: method if a table is too wide. The technique described below overcomes these issues.
A15: Copying and pasting a chart
A16: 1 | B16: Select the chart you want to copy by left clicking on it once i.e. so that the surrounding points are
B17: displayed
A18: 2 | B18: On the 'Home' tab click the paste icon
A19: 3 | B19: Click 'As picture' option and 'Copy as picture' (see figure 1)
A20: 4 | B20: Choose 'As shown on screen' and 'picture'
A21: 5 | B21: Using your mouse click on the point where you want to insert a copy of the chart e.g. in a Word
B22: document / presentation
A23: 6 | B23: On the 'Home' tab click 'paste' then 'paste special' and choose to insert as 'Picture (enhanced metafile)'
M25: Figure 2
A27: Copying and pasting a table as a picture
A28: 1 | B28: Highlight the table you want to copy by left clicking on the top left hand corner
B29: and dragging the mouse to the bottom right corner.
A30: 2 | B30: On the 'Home' tab click the paste icon
A31: 3 | B31: Click 'As picture' option and 'Copy as picture' (see figure 2)
A32: 4 | B32: Choose 'As shown on screen' and 'picture'
A33: 5 | B33: Using your mouse click on the point where you want to insert a copy of the chart e.g. in a Word
B34: document / presentation
A35: 6 | B35: On the 'Home' tab click 'paste' then 'paste special' and choose to insert as 'Picture (enhanced metafile)'

Sheet Interactive
B2: ='Interactive controls'!A112 -> Age/sex breakdown of patients, Anglesey GP cluster & Betsi Cadwaladr Health Board
B32: ='Interactive controls'!A114 -> Proportion of patients by age & sex, Anglesey GP cluster & Betsi Cadwaladr Health Board: 2012
D34: ='Interactive controls'!B78 -> Anglesey | H34: ='Interactive controls'!E131 -> Betsi Cadwaladr | L34: Wales
D35: % Males | F35: % Females | H35: % Males | J35: % Females | L35: % Males | N35: % Females
B37: 00_02 | D37: =(D55/SUM($D$55:$D$63,$F$55:$F$63)*100) -> 1.60752199 | F37: =(F55/SUM($F$55:$F$63,$D$55:$D$63))*100 -> 1.562026084 | H37: =(H55/SUM($H$55:$H$63,$J$55:$J$63))*100 -> 1.657788195 | J37: =(J55/SUM($H$55:$H$63,$J$55:$J$63))*100 -> 1.57539598 | L37: =(L55/SUM($L$55:$L$63,$N$55:$N$63))*100 -> 1.677638832 | N37: =(N55/SUM($L$55:$L$63,$N$55:$N$63))*100 -> 1.608970926
B38: 03_04 | D38: =(D56/SUM($D$55:$D$63,$F$55:$F$63)*100) -> 1.137397634 | F38: =(F56/SUM($F$55:$F$63,$D$55:$D$63))*100 -> 1.076736427 | H38: =(H56/SUM($H$55:$H$63,$J$55:$J$63))*100 -> 1.130762128 | J38: =(J56/SUM($H$55:$H$63,$J$55:$J$63))*100 -> 1.093827687 | L38: =(L56/SUM($L$55:$L$63,$N$55:$N$63))*100 -> 1.161369578 | N38: =(N56/SUM($L$55:$L$63,$N$55:$N$63))*100 -> 1.104041327
B39: 05_14 | D39: 5.292690325 | F39: 4.959053685 | H39: 5.494708431 | J39: 5.1992329 | L39: 5.516741739 | N39: 5.231045453
B40: 15_24 | D40: 5.914467698 | F40: 5.414012739 | H40: 6.317210029 | J40: 5.990482279 | L40: 6.734179608 | N40: 6.437143667
B41: 25_44 | D41: 11.46496815 | F41: 10.96451319 | H41: 12.30058953 | J41: 11.83464735 | L41: 13.01540303 | N41: 12.38195735
B42: 45_64 | D42: 13.98240825 | F42: 13.78525933 | H42: 13.57624831 | J42: 13.40862277 | L42: 13.35023782 | N42: 13.09698554
B43: 65_74 | D43: 6.18744313 | F43: 6.551410373 | H43: 5.396690106 | J43: 5.683642304 | L43: 4.938734369 | N43: 5.181591961
B44: 75_84 | D44: 3.215043979 | F44: 3.927813163 | H44: 2.929185311 | J44: 3.653668584 | L44: 2.707972407 | N44: 3.35968753
B45: 85+ | D45: 0.9554140127 | F45: 2.001819836 | H45: 0.8949499254 | J45: 1.862348178 | L45: 0.8221249252 | N45: 1.674173938
B47: ='Interactive controls'!A198 -> Produced by Public Health Wales Observatory, using WDS (NWIS)
B50: ='Interactive controls'!A115 -> Count of patients by age & sex, Anglesey GP cluster & Betsi Cadwaladr Health Board: 2012
D52: ='Interactive controls'!B78 -> Anglesey | H52: ='Interactive controls'!E131 -> Betsi Cadwaladr | L52: Wales
D53: Males | F53: Females | H53: Males | J53: Females | L53: Males | N53: Females
B55: 00_02 | D55: =ROUND('Interactive controls'!D100,-1) -> 1060 | F55: =ROUND('Interactive controls'!E100,-1) -> 1030 | H55: =ROUND('Interactive controls'!H100,-1) -> 11670 | J55: =ROUND('Interactive controls'!I100,-1) -> 11090 | L55: =ROUND('Interactive controls'!J100,-1) -> 53260 | N55: =ROUND('Interactive controls'!K100,-1) -> 51080
B56: 03_04 | D56: =ROUND('Interactive controls'!D101,-1) -> 750 | F56: =ROUND('Interactive controls'!E101,-1) -> 710 | H56: =ROUND('Interactive controls'!H101,-1) -> 7960 | J56: =ROUND('Interactive controls'!I101,-1) -> 7700 | L56: =ROUND('Interactive controls'!J101,-1) -> 36870 | N56: =ROUND('Interactive controls'!K101,-1) -> 35050
B57: 05_14 | D57: =ROUND('Interactive controls'!D102,-1) -> 3490 | F57: =ROUND('Interactive controls'!E102,-1) -> 3270 | H57: =ROUND('Interactive controls'!H102,-1) -> 38680 | J57: =ROUND('Interactive controls'!I102,-1) -> 36600 | L57: =ROUND('Interactive controls'!J102,-1) -> 175140 | N57: =ROUND('Interactive controls'!K102,-1) -> 166070
B58: 15_24 | D58: =ROUND('Interactive controls'!D103,-1) -> 3900 | F58: =ROUND('Interactive controls'!E103,-1) -> 3570 | H58: =ROUND('Interactive controls'!H103,-1) -> 44470 | J58: =ROUND('Interactive controls'!I103,-1) -> 42170 | L58: =ROUND('Interactive controls'!J103,-1) -> 213790 | N58: =ROUND('Interactive controls'!K103,-1) -> 204360
B59: 25_44 | D59: =ROUND('Interactive controls'!D104,-1) -> 7560 | F59: =ROUND('Interactive controls'!E104,-1) -> 7230 | H59: =ROUND('Interactive controls'!H104,-1) -> 86590 | J59: =ROUND('Interactive controls'!I104,-1) -> 83310 | L59: =ROUND('Interactive controls'!J104,-1) -> 413200 | N59: =ROUND('Interactive controls'!K104,-1) -> 393090
B60: 45_64 | D60: =ROUND('Interactive controls'!D105,-1) -> 9220 | F60: =ROUND('Interactive controls'!E105,-1) -> 9090 | H60: =ROUND('Interactive controls'!H105,-1) -> 95570 | J60: =ROUND('Interactive controls'!I105,-1) -> 94390 | L60: =ROUND('Interactive controls'!J105,-1) -> 423830 | N60: =ROUND('Interactive controls'!K105,-1) -> 415790
B61: 65_74 | D61: =ROUND('Interactive controls'!D106,-1) -> 4080 | F61: =ROUND('Interactive controls'!E106,-1) -> 4320 | H61: =ROUND('Interactive controls'!H106,-1) -> 37990 | J61: =ROUND('Interactive controls'!I106,-1) -> 40010 | L61: =ROUND('Interactive controls'!J106,-1) -> 156790 | N61: =ROUND('Interactive controls'!K106,-1) -> 164500
B62: 75_84 | D62: =ROUND('Interactive controls'!D107,-1) -> 2120 | F62: =ROUND('Interactive controls'!E107,-1) -> 2590 | H62: =ROUND('Interactive controls'!H107,-1) -> 20620 | J62: =ROUND('Interactive controls'!I107,-1) -> 25720 | L62: =ROUND('Interactive controls'!J107,-1) -> 85970 | N62: =ROUND('Interactive controls'!K107,-1) -> 106660
B63: 85+ | D63: =ROUND('Interactive controls'!D108,-1) -> 630 | F63: =ROUND('Interactive controls'!E108,-1) -> 1320 | H63: =ROUND('Interactive controls'!H108,-1) -> 6300 | J63: =ROUND('Interactive controls'!I108,-1) -> 13110 | L63: =ROUND('Interactive controls'!J108,-1) -> 26100 | N63: =ROUND('Interactive controls'!K108,-1) -> 53150
B65: ='Interactive controls'!A198 -> Produced by Public Health Wales Observatory, using WDS (NWIS)

Sheet Interactive controls (hidden)
B1: GP cluster index | C1: Health board index | E1: Health Board | F1: 1 | G1: =IF(F1=1,E1,E2) -> Health Board
A2: Current selection (list number) | B2: 1 | C2: 1 | E2: Local Authority
A3: Current selection
A6: Current selection variables
A7: Health board | C7: ?
A8: Betsi Cadwaladr | B8: Betsi Cadwaladr | C8: =INDEX(A8:A14,C2,1) -> Betsi Cadwaladr
A9: Powys | B9: Powys
A10: Hywel Dda | B10: Hywel Dda
A11: Abertawe Bro Morgannwg | B11: Abertawe Bro Morgannwg
A12: Cardiff & Vale | B12: Cardiff & Vale
A13: Cwm Taf | B13: Cwm Taf
A14: Aneurin Bevan | B14: Aneurin Bevan
C16: inputs for box 1 | D16: currently selected LA/HB
A17: Betsi Cadwaladr | B17: Isle of Anglesey | C17: =IF(INDEX(A17:B38,,$F$1)=0,"",INDEX(A17:B38,,$F$1)) -> Betsi Cadwaladr | D17: =INDEX(C17:C38,C2) -> Betsi Cadwaladr
A18: Powys | B18: Gwynedd | C18: =IF(INDEX(A18:B39,,$F$1)=0,"",INDEX(A18:B39,,$F$1)) -> Powys
A19: Hywel Dda | B19: Conwy | C19: =IF(INDEX(A19:B40,,$F$1)=0,"",INDEX(A19:B40,,$F$1)) -> Hywel Dda
A20: Abertawe Bro Morgannwg | B20: Denbighshire | C20: =IF(INDEX(A20:B41,,$F$1)=0,"",INDEX(A20:B41,,$F$1)) -> Abertawe Bro Morgannwg
A21: Cardiff & Vale | B21: Flintshire | C21: =IF(INDEX(A21:B43,,$F$1)=0,"",INDEX(A21:B43,,$F$1)) -> Cardiff & Vale
A22: Cwm Taf | B22: Wrexham | C22: =IF(INDEX(A22:B44,,$F$1)=0,"",INDEX(A22:B44,,$F$1)) -> Cwm Taf
A23: Aneurin Bevan | B23: Powys | C23: =IF(INDEX(A23:B45,,$F$1)=0,"",INDEX(A23:B45,,$F$1)) -> Aneurin Bevan
B24: Ceredigion | C24: =IF(INDEX(A24:B46,,$F$1)=0,"",INDEX(A24:B46,,$F$1)) -> 
B25: Pembrokeshire
B26: Carmarthenshire
B27: Swansea
B28: Neath Port Talbot
B29: Bridgend
B30: Vale of Glamorgan
B31: Rhondda Cynon Taf
B32: Merthyr Tydfil
B33: Caerphilly
B34: Blaenau Gwent
B35: Torfaen
B36: Monmouthshire
B37: Newport
B38: Cardiff
A41: HB with GP cluster
A42: Betsi Cadwaladr | B42: Powys | C42: Hywel Dda | D42: Abertawe Bro Morgannwg | E42: Cardiff & Vale | F42: Cwm Taf | G42: Aneurin Bevan | I42: GP clusters if HB selected
A43: Anglesey | B43: Mid Powys | C43: Amman/Gwendraeth | D43: Afan | E43: Cardiff East | F43: North Cynon | G43: Blaenau Gwent East | I43: =IF(INDEX(A43:G56,,$C$2)=0,"",INDEX(A43:G56,,$C$2)) -> Anglesey
A44: Arfon | B44: North Powys | C44: Llanelli | D44: BayHealth | E44: Cardiff North | F44: North Merthyr Tydfil | G44: Blaenau Gwent West | I44: =IF(INDEX(A44:G57,,$C$2)=0,"",INDEX(A44:G57,,$C$2)) -> Arfon
A45: Central & South Denbighshire | B45: South Powys | C45: North Ceredigion | D45: Bridgend East Network | E45: Cardiff South East | F45: North Rhondda | G45: Caerphilly East | I45: =IF(INDEX(A45:G57,,$C$2)=0,"",INDEX(A45:G57,,$C$2)) -> Central & South Denbighshire
A46: Conwy East | C46: North Pembrokeshire | D46: Bridgend North Network | E46: Cardiff South West | F46: North Taf Ely | G46: Caerphilly North | I46: =IF(INDEX(A46:G58,,$C$2)=0,"",INDEX(A46:G58,,$C$2)) -> Conwy East
A47: Conwy West | C47: South Ceredigion | D47: Bridgend West Network | E47: Cardiff West | F47: South Cynon | G47: Caerphilly South | I47: =IF(INDEX(A47:G58,,$C$2)=0,"",INDEX(A47:G58,,$C$2)) -> Conwy West
A48: Deeside, Hawarden & Saltney | C48: South Pembrokeshire | D48: CityHealth | E48: Central Vale | F48: South Merthyr Tydfil | G48: Monmouthshire North | I48: =IF(INDEX(A48:G58,,$C$2)=0,"",INDEX(A48:G58,,$C$2)) -> Deeside, Hawarden & Saltney
A49: Dwyfor | C49: Taf / Teifi / Tywi | D49: Cwmtawe | E49: City & Cardiff South | F49: South Rhondda | G49: Monmouthshire South | I49: =IF(INDEX(A49:G58,,$C$2)=0,"",INDEX(A49:G58,,$C$2)) -> Dwyfor
A50: Holywell & Flint | D50: Llwchwr | E50: Eastern Vale | F50: South Taf Ely | G50: Newport Central | I50: =IF(INDEX(A50:G58,,$C$2)=0,"",INDEX(A50:G58,,$C$2)) -> Holywell & Flint
A51: Meirionnydd | D51: Neath | E51: Western Vale | G51: Newport East | I51: =IF(INDEX(A51:G58,,$C$2)=0,"",INDEX(A51:G58,,$C$2)) -> Meirionnydd
A52: Mold, Buckley & Caergwle | D52: Penderi | G52: Newport West | I52: =IF(INDEX(A52:G58,,$C$2)=0,"",INDEX(A52:G58,,$C$2)) -> Mold, Buckley & Caergwle
A53: North Denbighshire | D53: Upper Valleys | G53: Torfaen North | I53: =IF(INDEX(A53:G59,,$C$2)=0,"",INDEX(A53:G59,,$C$2)) -> North Denbighshire
A54: South Wrexham | G54: Torfaen South | I54: South Wrexham
A55: West & North Wrexham | I55: =IF(INDEX(A55:G58,,$C$2)=0,"",INDEX(A55:G58,,$C$2)) -> West & North Wrexham
A56: Wrexham Town | I56: =IF(INDEX(A56:G58,,$C$2)=0,"",INDEX(A56:G58,,$C$2)) -> Wrexham Town
A59: LA with clusters
A60: Isle of Anglesey | B60: Gwynedd | C60: Conwy | D60: Denbighshire | E60: Flintshire | F60: Wrexham | G60: Powys | H60: Ceredigion | I60: Pembrokeshire | J60: Carmarthenshire | K60: Swansea | L60: Neath Port Talbot | M60: Bridgend | N60: Vale of Glamorgan | O60: Rhondda Cynon Taf | P60: Merthyr Tydfil | Q60: Caerphilly | R60: Blaenau Gwent | S60: Torfaen | T60: Monmouthshire | U60: Newport | V60: Cardiff | Y60: GP clusters if LA selected
A61: Anglesey | B61: Arfon | C61: Conwy East | D61: Central & South Denbighshire | E61: Deeside, Hawarden & Saltney | F61: South Wrexham | G61: Mid Powys | H61: North Ceredigion | I61: North Pembrokeshire | J61: Amman/Gwendraeth | K61: BayHealth | L61: Afan | M61: Bridgend East Network | N61: Central Vale | O61: North Cynon | P61: North Merthyr Tydfil | Q61: Caerphilly East | R61: Blaenau Gwent East | S61: Torfaen North | T61: Monmouthshire North | U61: Newport Central | V61: Cardiff East | Y61: =IF(INDEX(A61:V66,,$C$2)=0,"",INDEX(A61:V66,,$C$2)) -> Anglesey
B62: Dwyfor | C62: Conwy West | D62: North Denbighshire | E62: Holywell & Flint | F62: West & North Wrexham | G62: North Powys | H62: South Ceredigion | I62: South Pembrokeshire | J62: Llanelli | K62: CityHealth | L62: Neath | M62: Bridgend North Network | N62: Eastern Vale | O62: South Cynon | P62: South Merthyr Tydfil | Q62: Caerphilly North | R62: Blaenau Gwent West | S62: Torfaen South | T62: Monmouthshire South | U62: Newport East | V62: Cardiff North | Y62: =IF(INDEX(A62:V76,,$C$2)=0,"",INDEX(A62:V76,,$C$2)) -> 
B63: Meirionnydd | E63: Mold, Buckley & Caergwle | F63: Wrexham Town | G63: South Powys | J63: Taf / Teifi / Tywi | K63: Cwmtawe | L63: Upper Valleys | M63: Bridgend West Network | N63: Western Vale | O63: North Rhondda | Q63: Caerphilly South | U63: Newport West | V63: Cardiff South East | Y63: =IF(INDEX(A63:V77,,$C$2)=0,"",INDEX(A63:V77,,$C$2)) -> 
K64: Llwchwr | O64: North Taf Ely | V64: Cardiff South West | Y64: =IF(INDEX(A64:V78,,$C$2)=0,"",INDEX(A64:V78,,$C$2)) -> 
K65: Penderi | O65: South Rhondda | V65: Cardiff West | Y65: =IF(INDEX(A65:V79,,$C$2)=0,"",INDEX(A65:V79,,$C$2)) -> 
O66: South Taf Ely | V66: City & Cardiff South | Y66: =IF(INDEX(A66:V80,,$C$2)=0,"",INDEX(A66:V80,,$C$2)) -> 
Y67: =IF(INDEX(A67:V72,,$C$2)=0,"",INDEX(A67:V72,,$C$2)) -> 
Y68: =IF(INDEX(A68:V82,,$C$2)=0,"",INDEX(A68:V82,,$C$2)) -> 
Y69: =IF(INDEX(A69:V83,,$C$2)=0,"",INDEX(A69:V83,,$C$2)) -> 
Y70: =IF(INDEX(A70:V84,,$C$2)=0,"",INDEX(A70:V84,,$C$2)) -> 
Y71: =IF(INDEX(A71:V85,,$C$2)=0,"",INDEX(A71:V85,,$C$2)) -> 
Y72: =IF(INDEX(A72:V86,,$C$2)=0,"",INDEX(A72:V86,,$C$2)) -> 
Y73: =IF(INDEX(A73:V75,,$C$2)=0,"",INDEX(A73:V75,,$C$2)) -> 
Y74: =IF(INDEX(A74:V76,,$C$2)=0,"",INDEX(A74:V76,,$C$2)) -> 
A77: GP clusters selected | B77: GP cluster selected
A78: =IF($F$1=1,I43,Y61) -> Anglesey | B78: =INDEX($A$78:$A$91,$B$2) -> Anglesey
A79: Arfon
A80: Central & South Denbighshire
A81: Conwy East
A82: Conwy West
A83: Deeside, Hawarden & Saltney
A84: Dwyfor
A85: Holywell & Flint
A86: Meirionnydd
A87: Mold, Buckley & Caergwle
A88: North Denbighshire
A89: South Wrexham
A90: West & North Wrexham
A91: Wrexham Town
D99: Males pop | E99: Females pop | F99: LA males | G99: LA females | H99: HB males | I99: HB females | J99: Wales males | K99: Wales females
A100: =$B$78 -> Anglesey | B100: 00_02 | C100: =A100&B100 -> Anglesey00_02 | D100: =VLOOKUP($C100,'GP pops'!$A$2:$I$587,6,FALSE) -> 1056 | E100: =VLOOKUP($C100,'GP pops'!$A$2:$I$587,7,FALSE) -> 1031 | H100: =VLOOKUP($C100,'GP pops'!$A$2:$I$587,8,FALSE) -> 11668 | I100: =VLOOKUP($C100,'GP pops'!$A$2:$I$587,9,FALSE) -> 11090 | J100: ='HB pops'!D74 -> 53255 | K100: ='HB pops'!E74 -> 51075
A101: Anglesey | B101: 03_04 | C101: =A101&B101 -> Anglesey03_04 | D101: =VLOOKUP($C101,'GP pops'!$A$2:$I$587,6,FALSE) -> 750 | E101: =VLOOKUP($C101,'GP pops'!$A$2:$I$587,7,FALSE) -> 711 | H101: =VLOOKUP($C101,'GP pops'!$A$2:$I$587,8,FALSE) -> 7958 | I101: =VLOOKUP($C101,'GP pops'!$A$2:$I$587,9,FALSE) -> 7695 | J101: ='HB pops'!D75 -> 36871 | K101: ='HB pops'!E75 -> 35049
A102: Anglesey | B102: 05_14 | C102: Anglesey05_14 | D102: =VLOOKUP($C102,'GP pops'!$A$2:$I$587,6,FALSE) -> 3489 | E102: =VLOOKUP($C102,'GP pops'!$A$2:$I$587,7,FALSE) -> 3274 | H102: =VLOOKUP($C102,'GP pops'!$A$2:$I$587,8,FALSE) -> 38681 | I102: =VLOOKUP($C102,'GP pops'!$A$2:$I$587,9,FALSE) -> 36601 | J102: ='HB pops'!D76 -> 175140 | K102: ='HB pops'!E76 -> 166066
A103: Anglesey | B103: 15_24 | C103: Anglesey15_24 | D103: =VLOOKUP($C103,'GP pops'!$A$2:$I$587,6,FALSE) -> 3895 | E103: =VLOOKUP($C103,'GP pops'!$A$2:$I$587,7,FALSE) -> 3570 | H103: =VLOOKUP($C103,'GP pops'!$A$2:$I$587,8,FALSE) -> 44469 | I103: =VLOOKUP($C103,'GP pops'!$A$2:$I$587,9,FALSE) -> 42171 | J103: ='HB pops'!D77 -> 213785 | K103: ='HB pops'!E77 -> 204357
A104: Anglesey | B104: 25_44 | C104: Anglesey25_44 | D104: =VLOOKUP($C104,'GP pops'!$A$2:$I$587,6,FALSE) -> 7559 | E104: =VLOOKUP($C104,'GP pops'!$A$2:$I$587,7,FALSE) -> 7225 | H104: =VLOOKUP($C104,'GP pops'!$A$2:$I$587,8,FALSE) -> 86593 | I104: =VLOOKUP($C104,'GP pops'!$A$2:$I$587,9,FALSE) -> 83313 | J104: ='HB pops'!D78 -> 413202 | K104: ='HB pops'!E78 -> 393088
A105: Anglesey | B105: 45_64 | C105: Anglesey45_64 | D105: =VLOOKUP($C105,'GP pops'!$A$2:$I$587,6,FALSE) -> 9220 | E105: =VLOOKUP($C105,'GP pops'!$A$2:$I$587,7,FALSE) -> 9087 | H105: =VLOOKUP($C105,'GP pops'!$A$2:$I$587,8,FALSE) -> 95574 | I105: =VLOOKUP($C105,'GP pops'!$A$2:$I$587,9,FALSE) -> 94390 | J105: ='HB pops'!D79 -> 423833 | K105: ='HB pops'!E79 -> 415789
A106: Anglesey | B106: 65_74 | C106: Anglesey65_74 | D106: =VLOOKUP($C106,'GP pops'!$A$2:$I$587,6,FALSE) -> 4084 | E106: =VLOOKUP($C106,'GP pops'!$A$2:$I$587,7,FALSE) -> 4316 | H106: =VLOOKUP($C106,'GP pops'!$A$2:$I$587,8,FALSE) -> 37994 | I106: =VLOOKUP($C106,'GP pops'!$A$2:$I$587,9,FALSE) -> 40008 | J106: ='HB pops'!D80 -> 156793 | K106: ='HB pops'!E80 -> 164503
A107: Anglesey | B107: 75_84 | C107: Anglesey75_84 | D107: =VLOOKUP($C107,'GP pops'!$A$2:$I$587,6,FALSE) -> 2118 | E107: =VLOOKUP($C107,'GP pops'!$A$2:$I$587,7,FALSE) -> 2594 | H107: =VLOOKUP($C107,'GP pops'!$A$2:$I$587,8,FALSE) -> 20623 | I107: =VLOOKUP($C107,'GP pops'!$A$2:$I$587,9,FALSE) -> 25717 | J107: ='HB pops'!D81 -> 85967 | K107: ='HB pops'!E81 -> 106657
A108: Anglesey | B108: 85+ | C108: Anglesey85+ | D108: =VLOOKUP($C108,'GP pops'!$A$2:$I$587,6,FALSE) -> 634 | E108: =VLOOKUP($C108,'GP pops'!$A$2:$I$587,7,FALSE) -> 1319 | H108: =VLOOKUP($C108,'GP pops'!$A$2:$I$587,8,FALSE) -> 6296 | I108: =VLOOKUP($C108,'GP pops'!$A$2:$I$587,9,FALSE) -> 13110 | J108: ='HB pops'!D82 -> 26099 | K108: ='HB pops'!E82 -> 53145
A111: Titles
A112: ="Age/sex breakdown of patients, "&$B$78&" GP cluster & "&$D$17&" "&G1&"" -> Age/sex breakdown of patients, Anglesey GP cluster & Betsi Cadwaladr Health Board
A113: ="Proportion of patients by age & sex, "&$B$78&" GP cluster & "&$D$17&" "&G1&": 2012" -> Proportion of patients by age & sex, Anglesey GP cluster & Betsi Cadwaladr Health Board: 2012
A114: ="Proportion of patients by age & sex, "&$B$78&" GP cluster & "&$E$131&" Health Board: 2012" -> Proportion of patients by age & sex, Anglesey GP cluster & Betsi Cadwaladr Health Board: 2012
A115: ="Count of patients by age & sex, "&$B$78&" GP cluster & "&$E$131&" Health Board: 2012" -> Count of patients by age & sex, Anglesey GP cluster & Betsi Cadwaladr Health Board: 2012
A116: ="Select "&G1&":" -> Select Health Board:
A118: Chart data
B119: GP cluster males | C119: GP cluster females | D119: =$G$1&" males" -> Health Board males | E119: =$G$1&" females" -> Health Board females
A120: =Interactive!B37 -> 00_02 | B120: =-Interactive!D37 -> -1.60752199 | C120: =Interactive!F37 -> 1.562026084 | D120: =IF($F$1=1,-Interactive!H37,-Interactive!#REF!) -> -1.657788195 | E120: =IF($F$1=1,Interactive!J37,Interactive!#REF!) -> 1.57539598
A121: =Interactive!B38 -> 03_04 | B121: =-Interactive!D38 -> -1.137397634 | C121: =Interactive!F38 -> 1.076736427 | D121: =IF($F$1=1,-Interactive!H38,-Interactive!#REF!) -> -1.130762128 | E121: =IF($F$1=1,Interactive!J38,Interactive!#REF!) -> 1.093827687
A122: =Interactive!B39 -> 05_14 | B122: =-Interactive!D39 -> -5.292690325 | C122: =Interactive!F39 -> 4.959053685 | D122: =IF($F$1=1,-Interactive!H39,-Interactive!#REF!) -> -5.494708431 | E122: =IF($F$1=1,Interactive!J39,Interactive!#REF!) -> 5.1992329
A123: =Interactive!B40 -> 15_24 | B123: =-Interactive!D40 -> -5.914467698 | C123: =Interactive!F40 -> 5.414012739 | D123: =IF($F$1=1,-Interactive!H40,-Interactive!#REF!) -> -6.317210029 | E123: =IF($F$1=1,Interactive!J40,Interactive!#REF!) -> 5.990482279
A124: =Interactive!B41 -> 25_44 | B124: =-Interactive!D41 -> -11.46496815 | C124: =Interactive!F41 -> 10.96451319 | D124: =IF($F$1=1,-Interactive!H41,-Interactive!#REF!) -> -12.30058953 | E124: =IF($F$1=1,Interactive!J41,Interactive!#REF!) -> 11.83464735
A125: =Interactive!B42 -> 45_64 | B125: =-Interactive!D42 -> -13.98240825 | C125: =Interactive!F42 -> 13.78525933 | D125: =IF($F$1=1,-Interactive!H42,-Interactive!#REF!) -> -13.57624831 | E125: =IF($F$1=1,Interactive!J42,Interactive!#REF!) -> 13.40862277
A126: =Interactive!B43 -> 65_74 | B126: =-Interactive!D43 -> -6.18744313 | C126: =Interactive!F43 -> 6.551410373 | D126: =IF($F$1=1,-Interactive!H43,-Interactive!#REF!) -> -5.396690106 | E126: =IF($F$1=1,Interactive!J43,Interactive!#REF!) -> 5.683642304
A127: =Interactive!B44 -> 75_84 | B127: =-Interactive!D44 -> -3.215043979 | C127: =Interactive!F44 -> 3.927813163 | D127: =IF($F$1=1,-Interactive!H44,-Interactive!#REF!) -> -2.929185311 | E127: =IF($F$1=1,Interactive!J44,Interactive!#REF!) -> 3.653668584
A128: =Interactive!B45 -> 85+ | B128: =-Interactive!D45 -> -0.9554140127 | C128: =Interactive!F45 -> 2.001819836 | D128: =IF($F$1=1,-Interactive!H45,-Interactive!#REF!) -> -0.8949499254 | E128: =IF($F$1=1,Interactive!J45,Interactive!#REF!) -> 1.862348178
A130: Cluster | B130: LA | C130: HB
A131: Anglesey | B131: Isle of Anglesey | C131: Betsi Cadwaladr | D131: =VLOOKUP($B$78,$A$131:$C$194,2,FALSE) -> Isle of Anglesey | E131: =VLOOKUP($B$78,$A$131:$C$194,3,FALSE) -> Betsi Cadwaladr
A132: Arfon | B132: Gwynedd | C132: Betsi Cadwaladr
A133: Central & South Denbighshire | B133: Denbighshire | C133: Betsi Cadwaladr
A134: Conwy East | B134: Conwy | C134: Betsi Cadwaladr
A135: Conwy West | B135: Conwy | C135: Betsi Cadwaladr
A136: Deeside, Hawarden & Saltney | B136: Flintshire | C136: Betsi Cadwaladr
A137: Dwyfor | B137: Gwynedd | C137: Betsi Cadwaladr
A138: Holywell & Flint | B138: Flintshire | C138: Betsi Cadwaladr
A139: Meirionnydd | B139: Gwynedd | C139: Betsi Cadwaladr
A140: Mold, Buckley & Caergwle | B140: Flintshire | C140: Betsi Cadwaladr
A141: North Denbighshire | B141: Denbighshire | C141: Betsi Cadwaladr
A142: South Wrexham | B142: Wrexham | C142: Betsi Cadwaladr
A143: West & North Wrexham | B143: Wrexham | C143: Betsi Cadwaladr
A144: Wrexham Town | B144: Wrexham | C144: Betsi Cadwaladr
A145: Mid Powys | B145: Powys | C145: Powys
A146: North Powys | B146: Powys | C146: Powys
A147: South Powys | B147: Powys | C147: Powys
A148: Amman/Gwendraeth | B148: Carmarthenshire | C148: Hywel Dda
A149: Llanelli | B149: Carmarthenshire | C149: Hywel Dda
A150: North Ceredigion | B150: Ceredigion | C150: Hywel Dda
A151: North Pembrokeshire | B151: Pembrokeshire | C151: Hywel Dda
A152: South Ceredigion | B152: Ceredigion | C152: Hywel Dda
A153: South Pembrokeshire | B153: Pembrokeshire | C153: Hywel Dda
A154: Taf / Teifi / Tywi | B154: Carmarthenshire | C154: Hywel Dda
A155: Afan | B155: Neath Port Talbot | C155: Abertawe Bro Morgannwg
A156: BayHealth | B156: Swansea | C156: Abertawe Bro Morgannwg
A157: Bridgend East Network | B157: Bridgend | C157: Abertawe Bro Morgannwg
A158: Bridgend North Network | B158: Bridgend | C158: Abertawe Bro Morgannwg
A159: Bridgend West Network | B159: Bridgend | C159: Abertawe Bro Morgannwg
A160: CityHealth | B160: Swansea | C160: Abertawe Bro Morgannwg
A161: Cwmtawe | B161: Swansea | C161: Abertawe Bro Morgannwg
A162: Llwchwr | B162: Swansea | C162: Abertawe Bro Morgannwg
A163: Neath | B163: Neath Port Talbot | C163: Abertawe Bro Morgannwg
A164: Penderi | B164: Swansea | C164: Abertawe Bro Morgannwg
A165: Upper Valleys | B165: Neath Port Talbot | C165: Abertawe Bro Morgannwg
A166: Cardiff East | B166: Cardiff | C166: Cardiff & Vale
A167: Cardiff North | B167: Cardiff | C167: Cardiff & Vale
A168: Cardiff South East | B168: Cardiff | C168: Cardiff & Vale
A169: Cardiff South West | B169: Cardiff | C169: Cardiff & Vale
A170: Cardiff West | B170: Cardiff | C170: Cardiff & Vale
A171: Central Vale | B171: Vale of Glamorgan | C171: Cardiff & Vale
A172: City & Cardiff South | B172: Cardiff | C172: Cardiff & Vale
A173: Eastern Vale | B173: Vale of Glamorgan | C173: Cardiff & Vale
A174: Western Vale | B174: Vale of Glamorgan | C174: Cardiff & Vale
A175: North Cynon | B175: Rhondda Cynon Taf | C175: Cwm Taf
A176: North Merthyr Tydfil | B176: Merthyr Tydfil | C176: Cwm Taf
A177: North Rhondda | B177: Rhondda Cynon Taf | C177: Cwm Taf
A178: North Taf Ely | B178: Rhondda Cynon Taf | C178: Cwm Taf
A179: South Cynon | B179: Rhondda Cynon Taf | C179: Cwm Taf
A180: South Merthyr Tydfil | B180: Merthyr Tydfil | C180: Cwm Taf
A181: South Rhondda | B181: Rhondda Cynon Taf | C181: Cwm Taf
A182: South Taf Ely | B182: Rhondda Cynon Taf | C182: Cwm Taf
A183: Blaenau Gwent East | B183: Blaenau Gwent | C183: Aneurin Bevan
A184: Blaenau Gwent West | B184: Blaenau Gwent | C184: Aneurin Bevan
A185: Caerphilly East | B185: Caerphilly | C185: Aneurin Bevan
A186: Caerphilly North | B186: Caerphilly | C186: Aneurin Bevan
A187: Caerphilly South | B187: Caerphilly | C187: Aneurin Bevan
A188: Monmouthshire North | B188: Monmouthshire | C188: Aneurin Bevan
A189: Monmouthshire South | B189: Monmouthshire | C189: Aneurin Bevan
A190: Newport Central | B190: Newport | C190: Aneurin Bevan
A191: Newport East | B191: Newport | C191: Aneurin Bevan
A192: Newport West | B192: Newport | C192: Aneurin Bevan
A193: Torfaen North | B193: Torfaen | C193: Aneurin Bevan
A194: Torfaen South | B194: Torfaen | C194: Aneurin Bevan
A197: Caveat
A198: =IF($B$212=1,A214,A215) -> Produced by Public Health Wales Observatory, using WDS (NWIS)
A200: HBs which need additional caveat
A202: GP Practice Cluster
A203: South Powys | B203: =IF($B$78=A203,1,0) -> 0
A204: Deeside, Hawarden & Saltney | B204: =IF($B$78=A204,1,0) -> 0
A205: Monmouthshire North | B205: 0
A206: Mold, Buckley & Caergwle | B206: 0
A207: South Wrexham | B207: 0
A208: North Powys | B208: 0
A209: Mid Powys | B209: 0
A210: Monmouthshire South | B210: 0
A211: West & North Wrexham | B211: 0
B212: =SUM(B203:B211) -> 0
A214: Produced by Public Health Wales Observatory, using WDS (NWIS) and GP registrations from England (PCTs/CCGs)
A215: Produced by Public Health Wales Observatory, using WDS (NWIS)

Sheet GP pops (hidden)
A1: GP age | B1: GP Practice Cluster | C1: HB age | D1: Local Health Board | E1: age | F1: Males | G1: Females | H1: HB males | I1: HB females
A2: =B2&E2 -> NULL00_02 | B2: NULL | C2: =D2&E2 -> NULL00_02 | D2: NULL | E2: 00_02 | F2: 236 | G2: 209 | H2: =VLOOKUP(C2,'HB pops'!$A$2:$E$73,4,FALSE) -> 236 | I2: =VLOOKUP(C2,'HB pops'!$A$2:$E$73,5,FALSE) -> 209
A3: =B3&E3 -> NULL03_04 | B3: NULL | C3: =D3&E3 -> NULL03_04 | D3: NULL | E3: 03_04 | F3: 195 | G3: 162 | H3: =VLOOKUP(C3,'HB pops'!$A$2:$E$73,4,FALSE) -> 195 | I3: =VLOOKUP(C3,'HB pops'!$A$2:$E$73,5,FALSE) -> 162
A4: NULL05_14 | B4: NULL | C4: NULL05_14 | D4: NULL | E4: 05_14 | F4: 934 | G4: 907 | H4: =VLOOKUP(C4,'HB pops'!$A$2:$E$73,4,FALSE) -> 934 | I4: =VLOOKUP(C4,'HB pops'!$A$2:$E$73,5,FALSE) -> 907
A5: NULL15_24 | B5: NULL | C5: NULL15_24 | D5: NULL | E5: 15_24 | F5: 1404 | G5: 1435 | H5: =VLOOKUP(C5,'HB pops'!$A$2:$E$73,4,FALSE) -> 1404 | I5: =VLOOKUP(C5,'HB pops'!$A$2:$E$73,5,FALSE) -> 1435
A6: NULL25_44 | B6: NULL | C6: NULL25_44 | D6: NULL | E6: 25_44 | F6: 3092 | G6: 3126 | H6: =VLOOKUP(C6,'HB pops'!$A$2:$E$73,4,FALSE) -> 3092 | I6: =VLOOKUP(C6,'HB pops'!$A$2:$E$73,5,FALSE) -> 3126
A7: NULL45_64 | B7: NULL | C7: NULL45_64 | D7: NULL | E7: 45_64 | F7: 2874 | G7: 2680 | H7: =VLOOKUP(C7,'HB pops'!$A$2:$E$73,4,FALSE) -> 2874 | I7: =VLOOKUP(C7,'HB pops'!$A$2:$E$73,5,FALSE) -> 2680
A8: NULL65_74 | B8: NULL | C8: NULL65_74 | D8: NULL | E8: 65_74 | F8: 962 | G8: 927 | H8: =VLOOKUP(C8,'HB pops'!$A$2:$E$73,4,FALSE) -> 962 | I8: =VLOOKUP(C8,'HB pops'!$A$2:$E$73,5,FALSE) -> 927
A9: NULL75_84 | B9: NULL | C9: NULL75_84 | D9: NULL | E9: 75_84 | F9: 498 | G9: 559 | H9: =VLOOKUP(C9,'HB pops'!$A$2:$E$73,4,FALSE) -> 498 | I9: =VLOOKUP(C9,'HB pops'!$A$2:$E$73,5,FALSE) -> 559
A10: NULL85+ | B10: NULL | C10: NULL85+ | D10: NULL | E10: 85+ | F10: 166 | G10: 259 | H10: =VLOOKUP(C10,'HB pops'!$A$2:$E$73,4,FALSE) -> 166 | I10: =VLOOKUP(C10,'HB pops'!$A$2:$E$73,5,FALSE) -> 259 | K10: Local Health Board | L10: GP Practice Cluster | M10: age_group | N10: Males | O10: Females
A11: Afan00_02 | B11: Afan | C11: Abertawe Bro Morgannwg University LHB00_02 | D11: Abertawe Bro Morgannwg University LHB | E11: 00_02 | F11: 878 | G11: 843 | H11: =VLOOKUP(C11,'HB pops'!$A$2:$E$73,4,FALSE) -> 9116 | I11: =VLOOKUP(C11,'HB pops'!$A$2:$E$73,5,FALSE) -> 8539 | K11: Abertawe Bro Morgannwg University LHB | L11: Afan | M11: 00_02 | N11: 878 | O11: 843 | P11: =K11=D11 -> TRUE | Q11: =L11=B11 -> TRUE | R11: =M11=E11 -> TRUE | S11: =N11=F11 -> TRUE | T11: =O11=G11 -> TRUE
A12: Afan03_04 | B12: Afan | C12: Abertawe Bro Morgannwg University LHB03_04 | D12: Abertawe Bro Morgannwg University LHB | E12: 03_04 | F12: 616 | G12: 572 | H12: =VLOOKUP(C12,'HB pops'!$A$2:$E$73,4,FALSE) -> 6284 | I12: =VLOOKUP(C12,'HB pops'!$A$2:$E$73,5,FALSE) -> 5757 | K12: Abertawe Bro Morgannwg University LHB | L12: Afan | M12: 03_04 | N12: 616 | O12: 572 | P12: =K12=D12 -> TRUE | Q12: =L12=B12 -> TRUE | R12: =M12=E12 -> TRUE | S12: =N12=F12 -> TRUE | T12: =O12=G12 -> TRUE
A13: Afan05_14 | B13: Afan | C13: Abertawe Bro Morgannwg University LHB05_14 | D13: Abertawe Bro Morgannwg University LHB | E13: 05_14 | F13: 2679 | G13: 2636 | H13: =VLOOKUP(C13,'HB pops'!$A$2:$E$73,4,FALSE) -> 29673 | I13: =VLOOKUP(C13,'HB pops'!$A$2:$E$73,5,FALSE) -> 28118 | K13: Abertawe Bro Morgannwg University LHB | L13: Afan | M13: 05_14 | N13: 2679 | O13: 2636 | P13: TRUE | Q13: TRUE | R13: TRUE | S13: TRUE | T13: TRUE
A14: Afan15_24 | B14: Afan | C14: Abertawe Bro Morgannwg University LHB15_24 | D14: Abertawe Bro Morgannwg University LHB | E14: 15_24 | F14: 3317 | G14: 3080 | H14: =VLOOKUP(C14,'HB pops'!$A$2:$E$73,4,FALSE) -> 36992 | I14: =VLOOKUP(C14,'HB pops'!$A$2:$E$73,5,FALSE) -> 34588 | K14: Abertawe Bro Morgannwg University LHB | L14: Afan | M14: 15_24 | N14: 3317 | O14: 3080 | P14: TRUE | Q14: TRUE | R14: TRUE | S14: TRUE | T14: TRUE
A15: Afan25_44 | B15: Afan | C15: Abertawe Bro Morgannwg University LHB25_44 | D15: Abertawe Bro Morgannwg University LHB | E15: 25_44 | F15: 6562 | G15: 6240 | H15: =VLOOKUP(C15,'HB pops'!$A$2:$E$73,4,FALSE) -> 71125 | I15: =VLOOKUP(C15,'HB pops'!$A$2:$E$73,5,FALSE) -> 67753 | K15: Abertawe Bro Morgannwg University LHB | L15: Afan | M15: 25_44 | N15: 6562 | O15: 6240 | P15: TRUE | Q15: TRUE | R15: TRUE | S15: TRUE | T15: TRUE
A16: Afan45_64 | B16: Afan | C16: Abertawe Bro Morgannwg University LHB45_64 | D16: Abertawe Bro Morgannwg University LHB | E16: 45_64 | F16: 6951 | G16: 6908 | H16: =VLOOKUP(C16,'HB pops'!$A$2:$E$73,4,FALSE) -> 72111 | I16: =VLOOKUP(C16,'HB pops'!$A$2:$E$73,5,FALSE) -> 70992 | K16: Abertawe Bro Morgannwg University LHB | L16: Afan | M16: 45_64 | N16: 6951 | O16: 6908 | P16: TRUE | Q16: TRUE | R16: TRUE | S16: TRUE | T16: TRUE
A17: Afan65_74 | B17: Afan | C17: Abertawe Bro Morgannwg University LHB65_74 | D17: Abertawe Bro Morgannwg University LHB | E17: 65_74 | F17: 2446 | G17: 2561 | H17: =VLOOKUP(C17,'HB pops'!$A$2:$E$73,4,FALSE) -> 26093 | I17: =VLOOKUP(C17,'HB pops'!$A$2:$E$73,5,FALSE) -> 27993 | K17: Abertawe Bro Morgannwg University LHB | L17: Afan | M17: 65_74 | N17: 2446 | O17: 2561 | P17: TRUE | Q17: TRUE | R17: TRUE | S17: TRUE | T17: TRUE
A18: Afan75_84 | B18: Afan | C18: Abertawe Bro Morgannwg University LHB75_84 | D18: Abertawe Bro Morgannwg University LHB | E18: 75_84 | F18: 1407 | G18: 1781 | H18: =VLOOKUP(C18,'HB pops'!$A$2:$E$73,4,FALSE) -> 14828 | I18: =VLOOKUP(C18,'HB pops'!$A$2:$E$73,5,FALSE) -> 18662 | K18: Abertawe Bro Morgannwg University LHB | L18: Afan | M18: 75_84 | N18: 1407 | O18: 1781 | P18: TRUE | Q18: TRUE | R18: TRUE | S18: TRUE | T18: TRUE
A19: Afan85+ | B19: Afan | C19: Abertawe Bro Morgannwg University LHB85+ | D19: Abertawe Bro Morgannwg University LHB | E19: 85+ | F19: 447 | G19: 898 | H19: =VLOOKUP(C19,'HB pops'!$A$2:$E$73,4,FALSE) -> 4587 | I19: =VLOOKUP(C19,'HB pops'!$A$2:$E$73,5,FALSE) -> 8957 | K19: Abertawe Bro Morgannwg University LHB | L19: Afan | M19: 85+ | N19: 447 | O19: 898 | P19: TRUE | Q19: TRUE | R19: TRUE | S19: TRUE | T19: TRUE
A20: BayHealth00_02 | B20: BayHealth | C20: Abertawe Bro Morgannwg University LHB00_02 | D20: Abertawe Bro Morgannwg University LHB | E20: 00_02 | F20: 910 | G20: 811 | H20: =VLOOKUP(C20,'HB pops'!$A$2:$E$73,4,FALSE) -> 9116 | I20: =VLOOKUP(C20,'HB pops'!$A$2:$E$73,5,FALSE) -> 8539 | K20: Abertawe Bro Morgannwg University LHB | L20: BayHealth | M20: 00_02 | N20: 910 | O20: 811 | P20: TRUE | Q20: TRUE | R20: TRUE | S20: TRUE | T20: TRUE
A21: BayHealth03_04 | B21: BayHealth | C21: Abertawe Bro Morgannwg University LHB03_04 | D21: Abertawe Bro Morgannwg University LHB | E21: 03_04 | F21: 650 | G21: 619 | H21: =VLOOKUP(C21,'HB pops'!$A$2:$E$73,4,FALSE) -> 6284 | I21: =VLOOKUP(C21,'HB pops'!$A$2:$E$73,5,FALSE) -> 5757 | K21: Abertawe Bro Morgannwg University LHB | L21: BayHealth | M21: 03_04 | N21: 650 | O21: 619 | P21: TRUE | Q21: TRUE | R21: TRUE | S21: TRUE | T21: TRUE
A22: BayHealth05_14 | B22: BayHealth | C22: Abertawe Bro Morgannwg University LHB05_14 | D22: Abertawe Bro Morgannwg University LHB | E22: 05_14 | F22: 3315 | G22: 3040 | H22: =VLOOKUP(C22,'HB pops'!$A$2:$E$73,4,FALSE) -> 29673 | I22: =VLOOKUP(C22,'HB pops'!$A$2:$E$73,5,FALSE) -> 28118 | K22: Abertawe Bro Morgannwg University LHB | L22: BayHealth | M22: 05_14 | N22: 3315 | O22: 3040 | P22: TRUE | Q22: TRUE | R22: TRUE | S22: TRUE | T22: TRUE
A23: BayHealth15_24 | B23: BayHealth | C23: Abertawe Bro Morgannwg University LHB15_24 | D23: Abertawe Bro Morgannwg University LHB | E23: 15_24 | F23: 7256 | G23: 6395 | H23: =VLOOKUP(C23,'HB pops'!$A$2:$E$73,4,FALSE) -> 36992 | I23: =VLOOKUP(C23,'HB pops'!$A$2:$E$73,5,FALSE) -> 34588 | K23: Abertawe Bro Morgannwg University LHB | L23: BayHealth | M23: 15_24 | N23: 7256 | O23: 6395 | P23: TRUE | Q23: TRUE | R23: TRUE | S23: TRUE | T23: TRUE
A24: BayHealth25_44 | B24: BayHealth | C24: Abertawe Bro Morgannwg University LHB25_44 | D24: Abertawe Bro Morgannwg University LHB | E24: 25_44 | F24: 9303 | G24: 8099 | H24: =VLOOKUP(C24,'HB pops'!$A$2:$E$73,4,FALSE) -> 71125 | I24: =VLOOKUP(C24,'HB pops'!$A$2:$E$73,5,FALSE) -> 67753 | K24: Abertawe Bro Morgannwg University LHB | L24: BayHealth | M24: 25_44 | N24: 9303 | O24: 8099 | P24: TRUE | Q24: TRUE | R24: TRUE | S24: TRUE | T24: TRUE
A25: BayHealth45_64 | B25: BayHealth | C25: Abertawe Bro Morgannwg University LHB45_64 | D25: Abertawe Bro Morgannwg University LHB | E25: 45_64 | F25: 9040 | G25: 8628 | H25: =VLOOKUP(C25,'HB pops'!$A$2:$E$73,4,FALSE) -> 72111 | I25: =VLOOKUP(C25,'HB pops'!$A$2:$E$73,5,FALSE) -> 70992 | K25: Abertawe Bro Morgannwg University LHB | L25: BayHealth | M25: 45_64 | N25: 9040 | O25: 8628 | P25: TRUE | Q25: TRUE | R25: TRUE | S25: TRUE | T25: TRUE
A26: BayHealth65_74 | B26: BayHealth | C26: Abertawe Bro Morgannwg University LHB65_74 | D26: Abertawe Bro Morgannwg University LHB | E26: 65_74 | F26: 3568 | G26: 4094 | H26: =VLOOKUP(C26,'HB pops'!$A$2:$E$73,4,FALSE) -> 26093 | I26: =VLOOKUP(C26,'HB pops'!$A$2:$E$73,5,FALSE) -> 27993 | K26: Abertawe Bro Morgannwg University LHB | L26: BayHealth | M26: 65_74 | N26: 3568 | O26: 4094 | P26: TRUE | Q26: TRUE | R26: TRUE | S26: TRUE | T26: TRUE
A27: BayHealth75_84 | B27: BayHealth | C27: Abertawe Bro Morgannwg University LHB75_84 | D27: Abertawe Bro Morgannwg University LHB | E27: 75_84 | F27: 2357 | G27: 2973 | H27: =VLOOKUP(C27,'HB pops'!$A$2:$E$73,4,FALSE) -> 14828 | I27: =VLOOKUP(C27,'HB pops'!$A$2:$E$73,5,FALSE) -> 18662 | K27: Abertawe Bro Morgannwg University LHB | L27: BayHealth | M27: 75_84 | N27: 2357 | O27: 2973 | P27: TRUE | Q27: TRUE | R27: TRUE | S27: TRUE | T27: TRUE
A28: BayHealth85+ | B28: BayHealth | C28: Abertawe Bro Morgannwg University LHB85+ | D28: Abertawe Bro Morgannwg University LHB | E28: 85+ | F28: 822 | G28: 1600 | H28: =VLOOKUP(C28,'HB pops'!$A$2:$E$73,4,FALSE) -> 4587 | I28: =VLOOKUP(C28,'HB pops'!$A$2:$E$73,5,FALSE) -> 8957 | K28: Abertawe Bro Morgannwg University LHB | L28: BayHealth | M28: 85+ | N28: 822 | O28: 1600 | P28: TRUE | Q28: TRUE | R28: TRUE | S28: TRUE | T28: TRUE
A29: Bridgend East Network00_02 | B29: Bridgend East Network | C29: Abertawe Bro Morgannwg University LHB00_02 | D29: Abertawe Bro Morgannwg University LHB | E29: 00_02 | F29: 1200 | G29: 1188 | H29: =VLOOKUP(C29,'HB pops'!$A$2:$E$73,4,FALSE) -> 9116 | I29: =VLOOKUP(C29,'HB pops'!$A$2:$E$73,5,FALSE) -> 8539 | K29: Abertawe Bro Morgannwg University LHB | L29: Bridgend East Network | M29: 00_02 | N29: 1200 | O29: 1188 | P29: TRUE | Q29: TRUE | R29: TRUE | S29: TRUE | T29: TRUE
A30: Bridgend East Network03_04 | B30: Bridgend East Network | C30: Abertawe Bro Morgannwg University LHB03_04 | D30: Abertawe Bro Morgannwg University LHB | E30: 03_04 | F30: 841 | G30: 764 | H30: =VLOOKUP(C30,'HB pops'!$A$2:$E$73,4,FALSE) -> 6284 | I30: =VLOOKUP(C30,'HB pops'!$A$2:$E$73,5,FALSE) -> 5757 | K30: Abertawe Bro Morgannwg University LHB | L30: Bridgend East Network | M30: 03_04 | N30: 841 | O30: 764 | P30: TRUE | Q30: TRUE | R30: TRUE | S30: TRUE | T30: TRUE
A31: Bridgend East Network05_14 | B31: Bridgend East Network | C31: Abertawe Bro Morgannwg University LHB05_14 | D31: Abertawe Bro Morgannwg University LHB | E31: 05_14 | F31: 4000 | G31: 3771 | H31: =VLOOKUP(C31,'HB pops'!$A$2:$E$73,4,FALSE) -> 29673 | I31: =VLOOKUP(C31,'HB pops'!$A$2:$E$73,5,FALSE) -> 28118 | K31: Abertawe Bro Morgannwg University LHB | L31: Bridgend East Network | M31: 05_14 | N31: 4000 | O31: 3771 | P31: TRUE | Q31: TRUE | R31: TRUE | S31: TRUE | T31: TRUE
A32: Bridgend East Network15_24 | B32: Bridgend East Network | C32: Abertawe Bro Morgannwg University LHB15_24 | D32: Abertawe Bro Morgannwg University LHB | E32: 15_24 | F32: 4200 | G32: 3912 | H32: =VLOOKUP(C32,'HB pops'!$A$2:$E$73,4,FALSE) -> 36992 | I32: =VLOOKUP(C32,'HB pops'!$A$2:$E$73,5,FALSE) -> 34588 | K32: Abertawe Bro Morgannwg University LHB | L32: Bridgend East Network | M32: 15_24 | N32: 4200 | O32: 3912 | P32: TRUE | Q32: TRUE | R32: TRUE | S32: TRUE | T32: TRUE
A33: Bridgend East Network25_44 | B33: Bridgend East Network | C33: Abertawe Bro Morgannwg University LHB25_44 | D33: Abertawe Bro Morgannwg University LHB | E33: 25_44 | F33: 8983 | G33: 9101 | H33: =VLOOKUP(C33,'HB pops'!$A$2:$E$73,4,FALSE) -> 71125 | I33: =VLOOKUP(C33,'HB pops'!$A$2:$E$73,5,FALSE) -> 67753 | K33: Abertawe Bro Morgannwg University LHB | L33: Bridgend East Network | M33: 25_44 | N33: 8983 | O33: 9101 | P33: TRUE | Q33: TRUE | R33: TRUE | S33: TRUE | T33: TRUE
A34: Bridgend East Network45_64 | B34: Bridgend East Network | C34: Abertawe Bro Morgannwg University LHB45_64 | D34: Abertawe Bro Morgannwg University LHB | E34: 45_64 | F34: 9222 | G34: 9321 | H34: =VLOOKUP(C34,'HB pops'!$A$2:$E$73,4,FALSE) -> 72111 | I34: =VLOOKUP(C34,'HB pops'!$A$2:$E$73,5,FALSE) -> 70992 | K34: Abertawe Bro Morgannwg University LHB | L34: Bridgend East Network | M34: 45_64 | N34: 9222 | O34: 9321 | P34: TRUE | Q34: TRUE | R34: TRUE | S34: TRUE | T34: TRUE
A35: Bridgend East Network65_74 | B35: Bridgend East Network | C35: Abertawe Bro Morgannwg University LHB65_74 | D35: Abertawe Bro Morgannwg University LHB | E35: 65_74 | F35: 3179 | G35: 3349 | H35: =VLOOKUP(C35,'HB pops'!$A$2:$E$73,4,FALSE) -> 26093 | I35: =VLOOKUP(C35,'HB pops'!$A$2:$E$73,5,FALSE) -> 27993 | K35: Abertawe Bro Morgannwg University LHB | L35: Bridgend East Network | M35: 65_74 | N35: 3179 | O35: 3349 | P35: TRUE | Q35: TRUE | R35: TRUE | S35: TRUE | T35: TRUE
A36: Bridgend East Network75_84 | B36: Bridgend East Network | C36: Abertawe Bro Morgannwg University LHB75_84 | D36: Abertawe Bro Morgannwg University LHB | E36: 75_84 | F36: 1631 | G36: 2111 | H36: =VLOOKUP(C36,'HB pops'!$A$2:$E$73,4,FALSE) -> 14828 | I36: =VLOOKUP(C36,'HB pops'!$A$2:$E$73,5,FALSE) -> 18662 | K36: Abertawe Bro Morgannwg University LHB | L36: Bridgend East Network | M36: 75_84 | N36: 1631 | O36: 2111 | P36: TRUE | Q36: TRUE | R36: TRUE | S36: TRUE | T36: TRUE
A37: Bridgend East Network85+ | B37: Bridgend East Network | C37: Abertawe Bro Morgannwg University LHB85+ | D37: Abertawe Bro Morgannwg University LHB | E37: 85+ | F37: 458 | G37: 901 | H37: =VLOOKUP(C37,'HB pops'!$A$2:$E$73,4,FALSE) -> 4587 | I37: =VLOOKUP(C37,'HB pops'!$A$2:$E$73,5,FALSE) -> 8957 | K37: Abertawe Bro Morgannwg University LHB | L37: Bridgend East Network | M37: 85+ | N37: 458 | O37: 901 | P37: TRUE | Q37: TRUE | R37: TRUE | S37: TRUE | T37: TRUE
A38: Bridgend North Network00_02 | B38: Bridgend North Network | C38: Abertawe Bro Morgannwg University LHB00_02 | D38: Abertawe Bro Morgannwg University LHB | E38: 00_02 | F38: 945 | G38: 884 | H38: =VLOOKUP(C38,'HB pops'!$A$2:$E$73,4,FALSE) -> 9116 | I38: =VLOOKUP(C38,'HB pops'!$A$2:$E$73,5,FALSE) -> 8539 | K38: Abertawe Bro Morgannwg University LHB | L38: Bridgend North Network | M38: 00_02 | N38: 945 | O38: 884 | P38: TRUE | Q38: TRUE | R38: TRUE | S38: TRUE | T38: TRUE
A39: Bridgend North Network03_04 | B39: Bridgend North Network | C39: Abertawe Bro Morgannwg University LHB03_04 | D39: Abertawe Bro Morgannwg University LHB | E39: 03_04 | F39: 628 | G39: 572 | H39: =VLOOKUP(C39,'HB pops'!$A$2:$E$73,4,FALSE) -> 6284 | I39: =VLOOKUP(C39,'HB pops'!$A$2:$E$73,5,FALSE) -> 5757 | K39: Abertawe Bro Morgannwg University LHB | L39: Bridgend North Network | M39: 03_04 | N39: 628 | O39: 572 | P39: TRUE | Q39: TRUE | R39: TRUE | S39: TRUE | T39: TRUE
A40: Bridgend North Network05_14 | B40: Bridgend North Network | C40: Abertawe Bro Morgannwg University LHB05_14 | D40: Abertawe Bro Morgannwg University LHB | E40: 05_14 | F40: 2941 | G40: 2884 | H40: =VLOOKUP(C40,'HB pops'!$A$2:$E$73,4,FALSE) -> 29673 | I40: =VLOOKUP(C40,'HB pops'!$A$2:$E$73,5,FALSE) -> 28118 | K40: Abertawe Bro Morgannwg University LHB | L40: Bridgend North Network | M40: 05_14 | N40: 2941 | O40: 2884 | P40: TRUE | Q40: TRUE | R40: TRUE | S40: TRUE | T40: TRUE
A41: Bridgend North Network15_24 | B41: Bridgend North Network | C41: Abertawe Bro Morgannwg University LHB15_24 | D41: Abertawe Bro Morgannwg University LHB | E41: 15_24 | F41: 3264 | G41: 3150 | H41: =VLOOKUP(C41,'HB pops'!$A$2:$E$73,4,FALSE) -> 36992 | I41: =VLOOKUP(C41,'HB pops'!$A$2:$E$73,5,FALSE) -> 34588 | K41: Abertawe Bro Morgannwg University LHB | L41: Bridgend North Network | M41: 15_24 | N41: 3264 | O41: 3150 | P41: TRUE | Q41: TRUE | R41: TRUE | S41: TRUE | T41: TRUE
A42: Bridgend North Network25_44 | B42: Bridgend North Network | C42: Abertawe Bro Morgannwg University LHB25_44 | D42: Abertawe Bro Morgannwg University LHB | E42: 25_44 | F42: 6691 | G42: 6460 | H42: =VLOOKUP(C42,'HB pops'!$A$2:$E$73,4,FALSE) -> 71125 | I42: =VLOOKUP(C42,'HB pops'!$A$2:$E$73,5,FALSE) -> 67753 | K42: Abertawe Bro Morgannwg University LHB | L42: Bridgend North Network | M42: 25_44 | N42: 6691 | O42: 6460 | P42: TRUE | Q42: TRUE | R42: TRUE | S42: TRUE | T42: TRUE
A43: Bridgend North Network45_64 | B43: Bridgend North Network | C43: Abertawe Bro Morgannwg University LHB45_64 | D43: Abertawe Bro Morgannwg University LHB | E43: 45_64 | F43: 6986 | G43: 6773 | H43: =VLOOKUP(C43,'HB pops'!$A$2:$E$73,4,FALSE) -> 72111 | I43: =VLOOKUP(C43,'HB pops'!$A$2:$E$73,5,FALSE) -> 70992 | K43: Abertawe Bro Morgannwg University LHB | L43: Bridgend North Network | M43: 45_64 | N43: 6986 | O43: 6773 | P43: TRUE | Q43: TRUE | R43: TRUE | S43: TRUE | T43: TRUE
A44: Bridgend North Network65_74 | B44: Bridgend North Network | C44: Abertawe Bro Morgannwg University LHB65_74 | D44: Abertawe Bro Morgannwg University LHB | E44: 65_74 | F44: 2561 | G44: 2687 | H44: =VLOOKUP(C44,'HB pops'!$A$2:$E$73,4,FALSE) -> 26093 | I44: =VLOOKUP(C44,'HB pops'!$A$2:$E$73,5,FALSE) -> 27993 | K44: Abertawe Bro Morgannwg University LHB | L44: Bridgend North Network | M44: 65_74 | N44: 2561 | O44: 2687 | P44: TRUE | Q44: TRUE | R44: TRUE | S44: TRUE | T44: TRUE
A45: Bridgend North Network75_84 | B45: Bridgend North Network | C45: Abertawe Bro Morgannwg University LHB75_84 | D45: Abertawe Bro Morgannwg University LHB | E45: 75_84 | F45: 1239 | G45: 1568 | H45: =VLOOKUP(C45,'HB pops'!$A$2:$E$73,4,FALSE) -> 14828 | I45: =VLOOKUP(C45,'HB pops'!$A$2:$E$73,5,FALSE) -> 18662 | K45: Abertawe Bro Morgannwg University LHB | L45: Bridgend North Network | M45: 75_84 | N45: 1239 | O45: 1568 | P45: TRUE | Q45: TRUE | R45: TRUE | S45: TRUE | T45: TRUE
A46: Bridgend North Network85+ | B46: Bridgend North Network | C46: Abertawe Bro Morgannwg University LHB85+ | D46: Abertawe Bro Morgannwg University LHB | E46: 85+ | F46: 366 | G46: 654 | H46: =VLOOKUP(C46,'HB pops'!$A$2:$E$73,4,FALSE) -> 4587 | I46: =VLOOKUP(C46,'HB pops'!$A$2:$E$73,5,FALSE) -> 8957 | K46: Abertawe Bro Morgannwg University LHB | L46: Bridgend North Network | M46: 85+ | N46: 366 | O46: 654 | P46: TRUE | Q46: TRUE | R46: TRUE | S46: TRUE | T46: TRUE
A47: Bridgend West Network00_02 | B47: Bridgend West Network | C47: Abertawe Bro Morgannwg University LHB00_02 | D47: Abertawe Bro Morgannwg University LHB | E47: 00_02 | F47: 542 | G47: 490 | H47: =VLOOKUP(C47,'HB pops'!$A$2:$E$73,4,FALSE) -> 9116 | I47: =VLOOKUP(C47,'HB pops'!$A$2:$E$73,5,FALSE) -> 8539 | K47: Abertawe Bro Morgannwg University LHB | L47: Bridgend West Network | M47: 00_02 | N47: 542 | O47: 490 | P47: TRUE | Q47: TRUE | R47: TRUE | S47: TRUE | T47: TRUE
A48: Bridgend West Network03_04 | B48: Bridgend West Network | C48: Abertawe Bro Morgannwg University LHB03_04 | D48: Abertawe Bro Morgannwg University LHB | E48: 03_04 | F48: 397 | G48: 321 | H48: =VLOOKUP(C48,'HB pops'!$A$2:$E$73,4,FALSE) -> 6284 | I48: =VLOOKUP(C48,'HB pops'!$A$2:$E$73,5,FALSE) -> 5757 | K48: Abertawe Bro Morgannwg University LHB | L48: Bridgend West Network | M48: 03_04 | N48: 397 | O48: 321 | P48: TRUE | Q48: TRUE | R48: TRUE | S48: TRUE | T48: TRUE
A49: Bridgend West Network05_14 | B49: Bridgend West Network | C49: Abertawe Bro Morgannwg University LHB05_14 | D49: Abertawe Bro Morgannwg University LHB | E49: 05_14 | F49: 1859 | G49: 1741 | H49: =VLOOKUP(C49,'HB pops'!$A$2:$E$73,4,FALSE) -> 29673 | I49: =VLOOKUP(C49,'HB pops'!$A$2:$E$73,5,FALSE) -> 28118 | K49: Abertawe Bro Morgannwg University LHB | L49: Bridgend West Network | M49: 05_14 | N49: 1859 | O49: 1741 | P49: TRUE | Q49: TRUE | R49: TRUE | S49: TRUE | T49: TRUE
A50: Bridgend West Network15_24 | B50: Bridgend West Network | C50: Abertawe Bro Morgannwg University LHB15_24 | D50: Abertawe Bro Morgannwg University LHB | E50: 15_24 | F50: 1998 | G50: 1857 | H50: =VLOOKUP(C50,'HB pops'!$A$2:$E$73,4,FALSE) -> 36992 | I50: =VLOOKUP(C50,'HB pops'!$A$2:$E$73,5,FALSE) -> 34588 | K50: Abertawe Bro Morgannwg University LHB | L50: Bridgend West Network | M50: 15_24 | N50: 1998 | O50: 1857 | P50: TRUE | Q50: TRUE | R50: TRUE | S50: TRUE | T50: TRUE
A51: Bridgend West Network25_44 | B51: Bridgend West Network | C51: Abertawe Bro Morgannwg University LHB25_44 | D51: Abertawe Bro Morgannwg University LHB | E51: 25_44 | F51: 3930 | G51: 4005 | H51: =VLOOKUP(C51,'HB pops'!$A$2:$E$73,4,FALSE) -> 71125 | I51: =VLOOKUP(C51,'HB pops'!$A$2:$E$73,5,FALSE) -> 67753 | K51: Abertawe Bro Morgannwg University LHB | L51: Bridgend West Network | M51: 25_44 | N51: 3930 | O51: 4005 | P51: TRUE | Q51: TRUE | R51: TRUE | S51: TRUE | T51: TRUE
A52: Bridgend West Network45_64 | B52: Bridgend West Network | C52: Abertawe Bro Morgannwg University LHB45_64 | D52: Abertawe Bro Morgannwg University LHB | E52: 45_64 | F52: 4676 | G52: 4616 | H52: =VLOOKUP(C52,'HB pops'!$A$2:$E$73,4,FALSE) -> 72111 | I52: =VLOOKUP(C52,'HB pops'!$A$2:$E$73,5,FALSE) -> 70992 | K52: Abertawe Bro Morgannwg University LHB | L52: Bridgend West Network | M52: 45_64 | N52: 4676 | O52: 4616 | P52: TRUE | Q52: TRUE | R52: TRUE | S52: TRUE | T52: TRUE
A53: Bridgend West Network65_74 | B53: Bridgend West Network | C53: Abertawe Bro Morgannwg University LHB65_74 | D53: Abertawe Bro Morgannwg University LHB | E53: 65_74 | F53: 1882 | G53: 2116 | H53: =VLOOKUP(C53,'HB pops'!$A$2:$E$73,4,FALSE) -> 26093 | I53: =VLOOKUP(C53,'HB pops'!$A$2:$E$73,5,FALSE) -> 27993 | K53: Abertawe Bro Morgannwg University LHB | L53: Bridgend West Network | M53: 65_74 | N53: 1882 | O53: 2116 | P53: TRUE | Q53: TRUE | R53: TRUE | S53: TRUE | T53: TRUE
A54: Bridgend West Network75_84 | B54: Bridgend West Network | C54: Abertawe Bro Morgannwg University LHB75_84 | D54: Abertawe Bro Morgannwg University LHB | E54: 75_84 | F54: 1106 | G54: 1428 | H54: =VLOOKUP(C54,'HB pops'!$A$2:$E$73,4,FALSE) -> 14828 | I54: =VLOOKUP(C54,'HB pops'!$A$2:$E$73,5,FALSE) -> 18662 | K54: Abertawe Bro Morgannwg University LHB | L54: Bridgend West Network | M54: 75_84 | N54: 1106 | O54: 1428 | P54: TRUE | Q54: TRUE | R54: TRUE | S54: TRUE | T54: TRUE
A55: Bridgend West Network85+ | B55: Bridgend West Network | C55: Abertawe Bro Morgannwg University LHB85+ | D55: Abertawe Bro Morgannwg University LHB | E55: 85+ | F55: 371 | G55: 764 | H55: =VLOOKUP(C55,'HB pops'!$A$2:$E$73,4,FALSE) -> 4587 | I55: =VLOOKUP(C55,'HB pops'!$A$2:$E$73,5,FALSE) -> 8957 | K55: Abertawe Bro Morgannwg University LHB | L55: Bridgend West Network | M55: 85+ | N55: 371 | O55: 764 | P55: TRUE | Q55: TRUE | R55: TRUE | S55: TRUE | T55: TRUE
A56: CityHealth00_02 | B56: CityHealth | C56: Abertawe Bro Morgannwg University LHB00_02 | D56: Abertawe Bro Morgannwg University LHB | E56: 00_02 | F56: 871 | G56: 842 | H56: =VLOOKUP(C56,'HB pops'!$A$2:$E$73,4,FALSE) -> 9116 | I56: =VLOOKUP(C56,'HB pops'!$A$2:$E$73,5,FALSE) -> 8539 | K56: Abertawe Bro Morgannwg University LHB | L56: CityHealth | M56: 00_02 | N56: 871 | O56: 842 | P56: TRUE | Q56: TRUE | R56: TRUE | S56: TRUE | T56: TRUE
A57: CityHealth03_04 | B57: CityHealth | C57: Abertawe Bro Morgannwg University LHB03_04 | D57: Abertawe Bro Morgannwg University LHB | E57: 03_04 | F57: 597 | G57: 536 | H57: =VLOOKUP(C57,'HB pops'!$A$2:$E$73,4,FALSE) -> 6284 | I57: =VLOOKUP(C57,'HB pops'!$A$2:$E$73,5,FALSE) -> 5757 | K57: Abertawe Bro Morgannwg University LHB | L57: CityHealth | M57: 03_04 | N57: 597 | O57: 536 | P57: TRUE | Q57: TRUE | R57: TRUE | S57: TRUE | T57: TRUE
A58: CityHealth05_14 | B58: CityHealth | C58: Abertawe Bro Morgannwg University LHB05_14 | D58: Abertawe Bro Morgannwg University LHB | E58: 05_14 | F58: 2704 | G58: 2429 | H58: =VLOOKUP(C58,'HB pops'!$A$2:$E$73,4,FALSE) -> 29673 | I58: =VLOOKUP(C58,'HB pops'!$A$2:$E$73,5,FALSE) -> 28118 | K58: Abertawe Bro Morgannwg University LHB | L58: CityHealth | M58: 05_14 | N58: 2704 | O58: 2429 | P58: TRUE | Q58: TRUE | R58: TRUE | S58: TRUE | T58: TRUE
A59: CityHealth15_24 | B59: CityHealth | C59: Abertawe Bro Morgannwg University LHB15_24 | D59: Abertawe Bro Morgannwg University LHB | E59: 15_24 | F59: 3839 | G59: 3543 | H59: =VLOOKUP(C59,'HB pops'!$A$2:$E$73,4,FALSE) -> 36992 | I59: =VLOOKUP(C59,'HB pops'!$A$2:$E$73,5,FALSE) -> 34588 | K59: Abertawe Bro Morgannwg University LHB | L59: CityHealth | M59: 15_24 | N59: 3839 | O59: 3543 | P59: TRUE | Q59: TRUE | R59: TRUE | S59: TRUE | T59: TRUE
A60: CityHealth25_44 | B60: CityHealth | C60: Abertawe Bro Morgannwg University LHB25_44 | D60: Abertawe Bro Morgannwg University LHB | E60: 25_44 | F60: 8323 | G60: 6402 | H60: =VLOOKUP(C60,'HB pops'!$A$2:$E$73,4,FALSE) -> 71125 | I60: =VLOOKUP(C60,'HB pops'!$A$2:$E$73,5,FALSE) -> 67753 | K60: Abertawe Bro Morgannwg University LHB | L60: CityHealth | M60: 25_44 | N60: 8323 | O60: 6402 | P60: TRUE | Q60: TRUE | R60: TRUE | S60: TRUE | T60: TRUE
A61: CityHealth45_64 | B61: CityHealth | C61: Abertawe Bro Morgannwg University LHB45_64 | D61: Abertawe Bro Morgannwg University LHB | E61: 45_64 | F61: 6922 | G61: 5947 | H61: =VLOOKUP(C61,'HB pops'!$A$2:$E$73,4,FALSE) -> 72111 | I61: =VLOOKUP(C61,'HB pops'!$A$2:$E$73,5,FALSE) -> 70992 | K61: Abertawe Bro Morgannwg University LHB | L61: CityHealth | M61: 45_64 | N61: 6922 | O61: 5947 | P61: TRUE | Q61: TRUE | R61: TRUE | S61: TRUE | T61: TRUE
A62: CityHealth65_74 | B62: CityHealth | C62: Abertawe Bro Morgannwg University LHB65_74 | D62: Abertawe Bro Morgannwg University LHB | E62: 65_74 | F62: 2033 | G62: 2080 | H62: =VLOOKUP(C62,'HB pops'!$A$2:$E$73,4,FALSE) -> 26093 | I62: =VLOOKUP(C62,'HB pops'!$A$2:$E$73,5,FALSE) -> 27993 | K62: Abertawe Bro Morgannwg University LHB | L62: CityHealth | M62: 65_74 | N62: 2033 | O62: 2080 | P62: TRUE | Q62: TRUE | R62: TRUE | S62: TRUE | T62: TRUE
A63: CityHealth75_84 | B63: CityHealth | C63: Abertawe Bro Morgannwg University LHB75_84 | D63: Abertawe Bro Morgannwg University LHB | E63: 75_84 | F63: 1217 | G63: 1524 | H63: =VLOOKUP(C63,'HB pops'!$A$2:$E$73,4,FALSE) -> 14828 | I63: =VLOOKUP(C63,'HB pops'!$A$2:$E$73,5,FALSE) -> 18662 | K63: Abertawe Bro Morgannwg University LHB | L63: CityHealth | M63: 75_84 | N63: 1217 | O63: 1524 | P63: TRUE | Q63: TRUE | R63: TRUE | S63: TRUE | T63: TRUE
A64: CityHealth85+ | B64: CityHealth | C64: Abertawe Bro Morgannwg University LHB85+ | D64: Abertawe Bro Morgannwg University LHB | E64: 85+ | F64: 408 | G64: 654 | H64: =VLOOKUP(C64,'HB pops'!$A$2:$E$73,4,FALSE) -> 4587 | I64: =VLOOKUP(C64,'HB pops'!$A$2:$E$73,5,FALSE) -> 8957 | K64: Abertawe Bro Morgannwg University LHB | L64: CityHealth | M64: 85+ | N64: 408 | O64: 654 | P64: TRUE | Q64: TRUE | R64: TRUE | S64: TRUE | T64: TRUE
A65: Cwmtawe00_02 | B65: Cwmtawe | C65: Abertawe Bro Morgannwg University LHB00_02 | D65: Abertawe Bro Morgannwg University LHB | E65: 00_02 | F65: 825 | G65: 781 | H65: =VLOOKUP(C65,'HB pops'!$A$2:$E$73,4,FALSE) -> 9116 | I65: =VLOOKUP(C65,'HB pops'!$A$2:$E$73,5,FALSE) -> 8539 | K65: Abertawe Bro Morgannwg University LHB | L65: Cwmtawe | M65: 00_02 | N65: 825 | O65: 781 | P65: TRUE | Q65: TRUE | R65: TRUE | S65: TRUE | T65: TRUE
A66: Cwmtawe03_04 | B66: Cwmtawe | C66: Abertawe Bro Morgannwg University LHB03_04 | D66: Abertawe Bro Morgannwg University LHB | E66: 03_04 | F66: 549 | G66: 514 | H66: =VLOOKUP(C66,'HB pops'!$A$2:$E$73,4,FALSE) -> 6284 | I66: =VLOOKUP(C66,'HB pops'!$A$2:$E$73,5,FALSE) -> 5757 | K66: Abertawe Bro Morgannwg University LHB | L66: Cwmtawe | M66: 03_04 | N66: 549 | O66: 514 | P66: TRUE | Q66: TRUE | R66: TRUE | S66: TRUE | T66: TRUE
A67: =B67&E67 -> Cwmtawe05_14 | B67: Cwmtawe | C67: =D67&E67 -> Abertawe Bro Morgannwg University LHB05_14 | D67: Abertawe Bro Morgannwg University LHB | E67: 05_14 | F67: 2553 | G67: 2370 | H67: =VLOOKUP(C67,'HB pops'!$A$2:$E$73,4,FALSE) -> 29673 | I67: =VLOOKUP(C67,'HB pops'!$A$2:$E$73,5,FALSE) -> 28118 | K67: Abertawe Bro Morgannwg University LHB | L67: Cwmtawe | M67: 05_14 | N67: 2553 | O67: 2370 | P67: TRUE | Q67: TRUE | R67: TRUE | S67: TRUE | T67: TRUE
A68: Cwmtawe15_24 | B68: Cwmtawe | C68: Abertawe Bro Morgannwg University LHB15_24 | D68: Abertawe Bro Morgannwg University LHB | E68: 15_24 | F68: 2616 | G68: 2510 | H68: =VLOOKUP(C68,'HB pops'!$A$2:$E$73,4,FALSE) -> 36992 | I68: =VLOOKUP(C68,'HB pops'!$A$2:$E$73,5,FALSE) -> 34588 | K68: Abertawe Bro Morgannwg University LHB | L68: Cwmtawe | M68: 15_24 | N68: 2616 | O68: 2510 | P68: TRUE | Q68: TRUE | R68: TRUE | S68: TRUE | T68: TRUE
A69: Cwmtawe25_44 | B69: Cwmtawe | C69: Abertawe Bro Morgannwg University LHB25_44 | D69: Abertawe Bro Morgannwg University LHB | E69: 25_44 | F69: 5706 | G69: 5849 | H69: =VLOOKUP(C69,'HB pops'!$A$2:$E$73,4,FALSE) -> 71125 | I69: =VLOOKUP(C69,'HB pops'!$A$2:$E$73,5,FALSE) -> 67753 | K69: Abertawe Bro Morgannwg University LHB | L69: Cwmtawe | M69: 25_44 | N69: 5706 | O69: 5849 | P69: TRUE | Q69: TRUE | R69: TRUE | S69: TRUE | T69: TRUE
A70: Cwmtawe45_64 | B70: Cwmtawe | C70: Abertawe Bro Morgannwg University LHB45_64 | D70: Abertawe Bro Morgannwg University LHB | E70: 45_64 | F70: 5434 | G70: 5705 | H70: =VLOOKUP(C70,'HB pops'!$A$2:$E$73,4,FALSE) -> 72111 | I70: =VLOOKUP(C70,'HB pops'!$A$2:$E$73,5,FALSE) -> 70992 | K70: Abertawe Bro Morgannwg University LHB | L70: Cwmtawe | M70: 45_64 | N70: 5434 | O70: 5705 | P70: TRUE | Q70: TRUE | R70: TRUE | S70: TRUE | T70: TRUE
A71: Cwmtawe65_74 | B71: Cwmtawe | C71: Abertawe Bro Morgannwg University LHB65_74 | D71: Abertawe Bro Morgannwg University LHB | E71: 65_74 | F71: 1980 | G71: 2110 | H71: =VLOOKUP(C71,'HB pops'!$A$2:$E$73,4,FALSE) -> 26093 | I71: =VLOOKUP(C71,'HB pops'!$A$2:$E$73,5,FALSE) -> 27993 | K71: Abertawe Bro Morgannwg University LHB | L71: Cwmtawe | M71: 65_74 | N71: 1980 | O71: 2110 | P71: TRUE | Q71: TRUE | R71: TRUE | S71: TRUE | T71: TRUE
A72: Cwmtawe75_84 | B72: Cwmtawe | C72: Abertawe Bro Morgannwg University LHB75_84 | D72: Abertawe Bro Morgannwg University LHB | E72: 75_84 | F72: 1135 | G72: 1403 | H72: =VLOOKUP(C72,'HB pops'!$A$2:$E$73,4,FALSE) -> 14828 | I72: =VLOOKUP(C72,'HB pops'!$A$2:$E$73,5,FALSE) -> 18662 | K72: Abertawe Bro Morgannwg University LHB | L72: Cwmtawe | M72: 75_84 | N72: 1135 | O72: 1403 | P72: TRUE | Q72: TRUE | R72: TRUE | S72: TRUE | T72: TRUE
A73: Cwmtawe85+ | B73: Cwmtawe | C73: Abertawe Bro Morgannwg University LHB85+ | D73: Abertawe Bro Morgannwg University LHB | E73: 85+ | F73: 308 | G73: 606 | H73: =VLOOKUP(C73,'HB pops'!$A$2:$E$73,4,FALSE) -> 4587 | I73: =VLOOKUP(C73,'HB pops'!$A$2:$E$73,5,FALSE) -> 8957 | K73: Abertawe Bro Morgannwg University LHB | L73: Cwmtawe | M73: 85+ | N73: 308 | O73: 606 | P73: TRUE | Q73: TRUE | R73: TRUE | S73: TRUE | T73: TRUE
A74: Llwchwr00_02 | B74: Llwchwr | C74: Abertawe Bro Morgannwg University LHB00_02 | D74: Abertawe Bro Morgannwg University LHB | E74: 00_02 | F74: 786 | G74: 696 | H74: =VLOOKUP(C74,'HB pops'!$A$2:$E$73,4,FALSE) -> 9116 | I74: =VLOOKUP(C74,'HB pops'!$A$2:$E$73,5,FALSE) -> 8539 | K74: Abertawe Bro Morgannwg University LHB | L74: Llwchwr | M74: 00_02 | N74: 786 | O74: 696 | P74: TRUE | Q74: TRUE | R74: TRUE | S74: TRUE | T74: TRUE
A75: Llwchwr03_04 | B75: Llwchwr | C75: Abertawe Bro Morgannwg University LHB03_04 | D75: Abertawe Bro Morgannwg University LHB | E75: 03_04 | F75: 516 | G75: 499 | H75: =VLOOKUP(C75,'HB pops'!$A$2:$E$73,4,FALSE) -> 6284 | I75: =VLOOKUP(C75,'HB pops'!$A$2:$E$73,5,FALSE) -> 5757 | K75: Abertawe Bro Morgannwg University LHB | L75: Llwchwr | M75: 03_04 | N75: 516 | O75: 499 | P75: TRUE | Q75: TRUE | R75: TRUE | S75: TRUE | T75: TRUE
A76: Llwchwr05_14 | B76: Llwchwr | C76: Abertawe Bro Morgannwg University LHB05_14 | D76: Abertawe Bro Morgannwg University LHB | E76: 05_14 | F76: 2665 | G76: 2579 | H76: =VLOOKUP(C76,'HB pops'!$A$2:$E$73,4,FALSE) -> 29673 | I76: =VLOOKUP(C76,'HB pops'!$A$2:$E$73,5,FALSE) -> 28118 | K76: Abertawe Bro Morgannwg University LHB | L76: Llwchwr | M76: 05_14 | N76: 2665 | O76: 2579 | P76: =K76=D76 -> TRUE | Q76: =L76=B76 -> TRUE | R76: =M76=E76 -> TRUE | S76: =N76=F76 -> TRUE | T76: =O76=G76 -> TRUE
A77: Llwchwr15_24 | B77: Llwchwr | C77: Abertawe Bro Morgannwg University LHB15_24 | D77: Abertawe Bro Morgannwg University LHB | E77: 15_24 | F77: 2744 | G77: 2655 | H77: =VLOOKUP(C77,'HB pops'!$A$2:$E$73,4,FALSE) -> 36992 | I77: =VLOOKUP(C77,'HB pops'!$A$2:$E$73,5,FALSE) -> 34588 | K77: Abertawe Bro Morgannwg University LHB | L77: Llwchwr | M77: 15_24 | N77: 2744 | O77: 2655 | P77: TRUE | Q77: TRUE | R77: TRUE | S77: TRUE | T77: TRUE
A78: Llwchwr25_44 | B78: Llwchwr | C78: Abertawe Bro Morgannwg University LHB25_44 | D78: Abertawe Bro Morgannwg University LHB | E78: 25_44 | F78: 5900 | G78: 6003 | H78: =VLOOKUP(C78,'HB pops'!$A$2:$E$73,4,FALSE) -> 71125 | I78: =VLOOKUP(C78,'HB pops'!$A$2:$E$73,5,FALSE) -> 67753 | K78: Abertawe Bro Morgannwg University LHB | L78: Llwchwr | M78: 25_44 | N78: 5900 | O78: 6003 | P78: TRUE | Q78: TRUE | R78: TRUE | S78: TRUE | T78: TRUE
A79: Llwchwr45_64 | B79: Llwchwr | C79: Abertawe Bro Morgannwg University LHB45_64 | D79: Abertawe Bro Morgannwg University LHB | E79: 45_64 | F79: 6125 | G79: 6337 | H79: =VLOOKUP(C79,'HB pops'!$A$2:$E$73,4,FALSE) -> 72111 | I79: =VLOOKUP(C79,'HB pops'!$A$2:$E$73,5,FALSE) -> 70992 | K79: Abertawe Bro Morgannwg University LHB | L79: Llwchwr | M79: 45_64 | N79: 6125 | O79: 6337 | P79: TRUE | Q79: TRUE | R79: TRUE | S79: TRUE | T79: TRUE
A80: Llwchwr65_74 | B80: Llwchwr | C80: Abertawe Bro Morgannwg University LHB65_74 | D80: Abertawe Bro Morgannwg University LHB | E80: 65_74 | F80: 2322 | G80: 2436 | H80: =VLOOKUP(C80,'HB pops'!$A$2:$E$73,4,FALSE) -> 26093 | I80: =VLOOKUP(C80,'HB pops'!$A$2:$E$73,5,FALSE) -> 27993 | K80: Abertawe Bro Morgannwg University LHB | L80: Llwchwr | M80: 65_74 | N80: 2322 | O80: 2436 | P80: TRUE | Q80: TRUE | R80: TRUE | S80: TRUE | T80: TRUE
A81: Llwchwr75_84 | B81: Llwchwr | C81: Abertawe Bro Morgannwg University LHB75_84 | D81: Abertawe Bro Morgannwg University LHB | E81: 75_84 | F81: 1225 | G81: 1586 | H81: =VLOOKUP(C81,'HB pops'!$A$2:$E$73,4,FALSE) -> 14828 | I81: =VLOOKUP(C81,'HB pops'!$A$2:$E$73,5,FALSE) -> 18662 | K81: Abertawe Bro Morgannwg University LHB | L81: Llwchwr | M81: 75_84 | N81: 1225 | O81: 1586 | P81: TRUE | Q81: TRUE | R81: TRUE | S81: TRUE | T81: TRUE
A82: Llwchwr85+ | B82: Llwchwr | C82: Abertawe Bro Morgannwg University LHB85+ | D82: Abertawe Bro Morgannwg University LHB | E82: 85+ | F82: 401 | G82: 778 | H82: =VLOOKUP(C82,'HB pops'!$A$2:$E$73,4,FALSE) -> 4587 | I82: =VLOOKUP(C82,'HB pops'!$A$2:$E$73,5,FALSE) -> 8957 | K82: Abertawe Bro Morgannwg University LHB | L82: Llwchwr | M82: 85+ | N82: 401 | O82: 778 | P82: TRUE | Q82: TRUE | R82: TRUE | S82: TRUE | T82: TRUE
A83: Neath00_02 | B83: Neath | C83: Abertawe Bro Morgannwg University LHB00_02 | D83: Abertawe Bro Morgannwg University LHB | E83: 00_02 | F83: 910 | G83: 842 | H83: =VLOOKUP(C83,'HB pops'!$A$2:$E$73,4,FALSE) -> 9116 | I83: =VLOOKUP(C83,'HB pops'!$A$2:$E$73,5,FALSE) -> 8539 | K83: Abertawe Bro Morgannwg University LHB | L83: Neath | M83: 00_02 | N83: 910 | O83: 842 | P83: TRUE | Q83: TRUE | R83: TRUE | S83: TRUE | T83: TRUE
A84: Neath03_04 | B84: Neath | C84: Abertawe Bro Morgannwg University LHB03_04 | D84: Abertawe Bro Morgannwg University LHB | E84: 03_04 | F84: 587 | G84: 575 | H84: =VLOOKUP(C84,'HB pops'!$A$2:$E$73,4,FALSE) -> 6284 | I84: =VLOOKUP(C84,'HB pops'!$A$2:$E$73,5,FALSE) -> 5757 | K84: Abertawe Bro Morgannwg University LHB | L84: Neath | M84: 03_04 | N84: 587 | O84: 575 | P84: TRUE | Q84: TRUE | R84: TRUE | S84: TRUE | T84: TRUE
A85: Neath05_14 | B85: Neath | C85: Abertawe Bro Morgannwg University LHB05_14 | D85: Abertawe Bro Morgannwg University LHB | E85: 05_14 | F85: 3097 | G85: 2941 | H85: =VLOOKUP(C85,'HB pops'!$A$2:$E$73,4,FALSE) -> 29673 | I85: =VLOOKUP(C85,'HB pops'!$A$2:$E$73,5,FALSE) -> 28118 | K85: Abertawe Bro Morgannwg University LHB | L85: Neath | M85: 05_14 | N85: 3097 | O85: 2941 | P85: TRUE | Q85: TRUE | R85: TRUE | S85: TRUE | T85: TRUE
A86: Neath15_24 | B86: Neath | C86: Abertawe Bro Morgannwg University LHB15_24 | D86: Abertawe Bro Morgannwg University LHB | E86: 15_24 | F86: 3353 | G86: 3249 | H86: =VLOOKUP(C86,'HB pops'!$A$2:$E$73,4,FALSE) -> 36992 | I86: =VLOOKUP(C86,'HB pops'!$A$2:$E$73,5,FALSE) -> 34588 | K86: Abertawe Bro Morgannwg University LHB | L86: Neath | M86: 15_24 | N86: 3353 | O86: 3249 | P86: TRUE | Q86: TRUE | R86: TRUE | S86: TRUE | T86: TRUE
A87: Neath25_44 | B87: Neath | C87: Abertawe Bro Morgannwg University LHB25_44 | D87: Abertawe Bro Morgannwg University LHB | E87: 25_44 | F87: 7066 | G87: 7004 | H87: =VLOOKUP(C87,'HB pops'!$A$2:$E$73,4,FALSE) -> 71125 | I87: =VLOOKUP(C87,'HB pops'!$A$2:$E$73,5,FALSE) -> 67753 | K87: Abertawe Bro Morgannwg University LHB | L87: Neath | M87: 25_44 | N87: 7066 | O87: 7004 | P87: TRUE | Q87: TRUE | R87: TRUE | S87: TRUE | T87: TRUE
A88: Neath45_64 | B88: Neath | C88: Abertawe Bro Morgannwg University LHB45_64 | D88: Abertawe Bro Morgannwg University LHB | E88: 45_64 | F88: 7846 | G88: 7888 | H88: =VLOOKUP(C88,'HB pops'!$A$2:$E$73,4,FALSE) -> 72111 | I88: =VLOOKUP(C88,'HB pops'!$A$2:$E$73,5,FALSE) -> 70992 | K88: Abertawe Bro Morgannwg University LHB | L88: Neath | M88: 45_64 | N88: 7846 | O88: 7888 | P88: TRUE | Q88: TRUE | R88: TRUE | S88: TRUE | T88: TRUE
A89: Neath65_74 | B89: Neath | C89: Abertawe Bro Morgannwg University LHB65_74 | D89: Abertawe Bro Morgannwg University LHB | E89: 65_74 | F89: 2843 | G89: 3067 | H89: =VLOOKUP(C89,'HB pops'!$A$2:$E$73,4,FALSE) -> 26093 | I89: =VLOOKUP(C89,'HB pops'!$A$2:$E$73,5,FALSE) -> 27993 | K89: Abertawe Bro Morgannwg University LHB | L89: Neath | M89: 65_74 | N89: 2843 | O89: 3067 | P89: TRUE | Q89: TRUE | R89: TRUE | S89: TRUE | T89: TRUE
A90: Neath75_84 | B90: Neath | C90: Abertawe Bro Morgannwg University LHB75_84 | D90: Abertawe Bro Morgannwg University LHB | E90: 75_84 | F90: 1662 | G90: 2069 | H90: =VLOOKUP(C90,'HB pops'!$A$2:$E$73,4,FALSE) -> 14828 | I90: =VLOOKUP(C90,'HB pops'!$A$2:$E$73,5,FALSE) -> 18662 | K90: Abertawe Bro Morgannwg University LHB | L90: Neath | M90: 75_84 | N90: 1662 | O90: 2069 | P90: TRUE | Q90: TRUE | R90: TRUE | S90: TRUE | T90: TRUE
A91: Neath85+ | B91: Neath | C91: Abertawe Bro Morgannwg University LHB85+ | D91: Abertawe Bro Morgannwg University LHB | E91: 85+ | F91: 487 | G91: 1027 | H91: =VLOOKUP(C91,'HB pops'!$A$2:$E$73,4,FALSE) -> 4587 | I91: =VLOOKUP(C91,'HB pops'!$A$2:$E$73,5,FALSE) -> 8957 | K91: Abertawe Bro Morgannwg University LHB | L91: Neath | M91: 85+ | N91: 487 | O91: 1027 | P91: TRUE | Q91: TRUE | R91: TRUE | S91: TRUE | T91: TRUE
A92: Penderi00_02 | B92: Penderi | C92: Abertawe Bro Morgannwg University LHB00_02 | D92: Abertawe Bro Morgannwg University LHB | E92: 00_02 | F92: 747 | G92: 703 | H92: =VLOOKUP(C92,'HB pops'!$A$2:$E$73,4,FALSE) -> 9116 | I92: =VLOOKUP(C92,'HB pops'!$A$2:$E$73,5,FALSE) -> 8539 | K92: Abertawe Bro Morgannwg University LHB | L92: Penderi | M92: 00_02 | N92: 747 | O92: 703 | P92: TRUE | Q92: TRUE | R92: TRUE | S92: TRUE | T92: TRUE
A93: Penderi03_04 | B93: Penderi | C93: Abertawe Bro Morgannwg University LHB03_04 | D93: Abertawe Bro Morgannwg University LHB | E93: 03_04 | F93: 530 | G93: 473 | H93: =VLOOKUP(C93,'HB pops'!$A$2:$E$73,4,FALSE) -> 6284 | I93: =VLOOKUP(C93,'HB pops'!$A$2:$E$73,5,FALSE) -> 5757 | K93: Abertawe Bro Morgannwg University LHB | L93: Penderi | M93: 03_04 | N93: 530 | O93: 473 | P93: TRUE | Q93: TRUE | R93: TRUE | S93: TRUE | T93: TRUE
A94: Penderi05_14 | B94: Penderi | C94: Abertawe Bro Morgannwg University LHB05_14 | D94: Abertawe Bro Morgannwg University LHB | E94: 05_14 | F94: 2194 | G94: 2144 | H94: =VLOOKUP(C94,'HB pops'!$A$2:$E$73,4,FALSE) -> 29673 | I94: =VLOOKUP(C94,'HB pops'!$A$2:$E$73,5,FALSE) -> 28118 | K94: Abertawe Bro Morgannwg University LHB | L94: Penderi | M94: 05_14 | N94: 2194 | O94: 2144 | P94: TRUE | Q94: TRUE | R94: TRUE | S94: TRUE | T94: TRUE
A95: Penderi15_24 | B95: Penderi | C95: Abertawe Bro Morgannwg University LHB15_24 | D95: Abertawe Bro Morgannwg University LHB | E95: 15_24 | F95: 2461 | G95: 2425 | H95: =VLOOKUP(C95,'HB pops'!$A$2:$E$73,4,FALSE) -> 36992 | I95: =VLOOKUP(C95,'HB pops'!$A$2:$E$73,5,FALSE) -> 34588 | K95: Abertawe Bro Morgannwg University LHB | L95: Penderi | M95: 15_24 | N95: 2461 | O95: 2425 | P95: TRUE | Q95: TRUE | R95: TRUE | S95: TRUE | T95: TRUE
A96: Penderi25_44 | B96: Penderi | C96: Abertawe Bro Morgannwg University LHB25_44 | D96: Abertawe Bro Morgannwg University LHB | E96: 25_44 | F96: 4897 | G96: 4944 | H96: =VLOOKUP(C96,'HB pops'!$A$2:$E$73,4,FALSE) -> 71125 | I96: =VLOOKUP(C96,'HB pops'!$A$2:$E$73,5,FALSE) -> 67753 | K96: Abertawe Bro Morgannwg University LHB | L96: Penderi | M96: 25_44 | N96: 4897 | O96: 4944 | P96: TRUE | Q96: TRUE | R96: TRUE | S96: TRUE | T96: TRUE
A97: Penderi45_64 | B97: Penderi | C97: Abertawe Bro Morgannwg University LHB45_64 | D97: Abertawe Bro Morgannwg University LHB | E97: 45_64 | F97: 4583 | G97: 4667 | H97: =VLOOKUP(C97,'HB pops'!$A$2:$E$73,4,FALSE) -> 72111 | I97: =VLOOKUP(C97,'HB pops'!$A$2:$E$73,5,FALSE) -> 70992 | K97: Abertawe Bro Morgannwg University LHB | L97: Penderi | M97: 45_64 | N97: 4583 | O97: 4667 | P97: TRUE | Q97: TRUE | R97: TRUE | S97: TRUE | T97: TRUE
A98: Penderi65_74 | B98: Penderi | C98: Abertawe Bro Morgannwg University LHB65_74 | D98: Abertawe Bro Morgannwg University LHB | E98: 65_74 | F98: 1595 | G98: 1739 | H98: =VLOOKUP(C98,'HB pops'!$A$2:$E$73,4,FALSE) -> 26093 | I98: =VLOOKUP(C98,'HB pops'!$A$2:$E$73,5,FALSE) -> 27993 | K98: Abertawe Bro Morgannwg University LHB | L98: Penderi | M98: 65_74 | N98: 1595 | O98: 1739 | P98: TRUE | Q98: TRUE | R98: TRUE | S98: TRUE | T98: TRUE
A99: Penderi75_84 | B99: Penderi | C99: Abertawe Bro Morgannwg University LHB75_84 | D99: Abertawe Bro Morgannwg University LHB | E99: 75_84 | F99: 964 | G99: 1165 | H99: =VLOOKUP(C99,'HB pops'!$A$2:$E$73,4,FALSE) -> 14828 | I99: =VLOOKUP(C99,'HB pops'!$A$2:$E$73,5,FALSE) -> 18662 | K99: Abertawe Bro Morgannwg University LHB | L99: Penderi | M99: 75_84 | N99: 964 | O99: 1165 | P99: TRUE | Q99: TRUE | R99: TRUE | S99: TRUE | T99: TRUE
A100: Penderi85+ | B100: Penderi | C100: Abertawe Bro Morgannwg University LHB85+ | D100: Abertawe Bro Morgannwg University LHB | E100: 85+ | F100: 260 | G100: 503 | H100: =VLOOKUP(C100,'HB pops'!$A$2:$E$73,4,FALSE) -> 4587 | I100: =VLOOKUP(C100,'HB pops'!$A$2:$E$73,5,FALSE) -> 8957 | K100: Abertawe Bro Morgannwg University LHB | L100: Penderi | M100: 85+ | N100: 260 | O100: 503 | P100: TRUE | Q100: TRUE | R100: TRUE | S100: TRUE | T100: TRUE
A101: Upper Valleys00_02 | B101: Upper Valleys | C101: Abertawe Bro Morgannwg University LHB00_02 | D101: Abertawe Bro Morgannwg University LHB | E101: 00_02 | F101: 502 | G101: 459 | H101: =VLOOKUP(C101,'HB pops'!$A$2:$E$73,4,FALSE) -> 9116 | I101: =VLOOKUP(C101,'HB pops'!$A$2:$E$73,5,FALSE) -> 8539 | K101: Abertawe Bro Morgannwg University LHB | L101: Upper Valleys | M101: 00_02 | N101: 502 | O101: 459 | P101: TRUE | Q101: TRUE | R101: TRUE | S101: TRUE | T101: TRUE
A102: Upper Valleys03_04 | B102: Upper Valleys | C102: Abertawe Bro Morgannwg University LHB03_04 | D102: Abertawe Bro Morgannwg University LHB | E102: 03_04 | F102: 373 | G102: 312 | H102: =VLOOKUP(C102,'HB pops'!$A$2:$E$73,4,FALSE) -> 6284 | I102: =VLOOKUP(C102,'HB pops'!$A$2:$E$73,5,FALSE) -> 5757 | K102: Abertawe Bro Morgannwg University LHB | L102: Upper Valleys | M102: 03_04 | N102: 373 | O102: 312 | P102: TRUE | Q102: TRUE | R102: TRUE | S102: TRUE | T102: TRUE
A103: Upper Valleys05_14 | B103: Upper Valleys | C103: Abertawe Bro Morgannwg University LHB05_14 | D103: Abertawe Bro Morgannwg University LHB | E103: 05_14 | F103: 1666 | G103: 1583 | H103: =VLOOKUP(C103,'HB pops'!$A$2:$E$73,4,FALSE) -> 29673 | I103: =VLOOKUP(C103,'HB pops'!$A$2:$E$73,5,FALSE) -> 28118 | K103: Abertawe Bro Morgannwg University LHB | L103: Upper Valleys | M103: 05_14 | N103: 1666 | O103: 1583 | P103: TRUE | Q103: TRUE | R103: TRUE | S103: TRUE | T103: TRUE
A104: Upper Valleys15_24 | B104: Upper Valleys | C104: Abertawe Bro Morgannwg University LHB15_24 | D104: Abertawe Bro Morgannwg University LHB | E104: 15_24 | F104: 1944 | G104: 1812 | H104: =VLOOKUP(C104,'HB pops'!$A$2:$E$73,4,FALSE) -> 36992 | I104: =VLOOKUP(C104,'HB pops'!$A$2:$E$73,5,FALSE) -> 34588 | K104: Abertawe Bro Morgannwg University LHB | L104: Upper Valleys | M104: 15_24 | N104: 1944 | O104: 1812 | P104: TRUE | Q104: TRUE | R104: TRUE | S104: TRUE | T104: TRUE
A105: Upper Valleys25_44 | B105: Upper Valleys | C105: Abertawe Bro Morgannwg University LHB25_44 | D105: Abertawe Bro Morgannwg University LHB | E105: 25_44 | F105: 3764 | G105: 3646 | H105: =VLOOKUP(C105,'HB pops'!$A$2:$E$73,4,FALSE) -> 71125 | I105: =VLOOKUP(C105,'HB pops'!$A$2:$E$73,5,FALSE) -> 67753 | K105: Abertawe Bro Morgannwg University LHB | L105: Upper Valleys | M105: 25_44 | N105: 3764 | O105: 3646 | P105: TRUE | Q105: TRUE | R105: TRUE | S105: TRUE | T105: TRUE
A106: Upper Valleys45_64 | B106: Upper Valleys | C106: Abertawe Bro Morgannwg University LHB45_64 | D106: Abertawe Bro Morgannwg University LHB | E106: 45_64 | F106: 4326 | G106: 4202 | H106: =VLOOKUP(C106,'HB pops'!$A$2:$E$73,4,FALSE) -> 72111 | I106: =VLOOKUP(C106,'HB pops'!$A$2:$E$73,5,FALSE) -> 70992 | K106: Abertawe Bro Morgannwg University LHB | L106: Upper Valleys | M106: 45_64 | N106: 4326 | O106: 4202 | P106: TRUE | Q106: TRUE | R106: TRUE | S106: TRUE | T106: TRUE
A107: Upper Valleys65_74 | B107: Upper Valleys | C107: Abertawe Bro Morgannwg University LHB65_74 | D107: Abertawe Bro Morgannwg University LHB | E107: 65_74 | F107: 1684 | G107: 1754 | H107: =VLOOKUP(C107,'HB pops'!$A$2:$E$73,4,FALSE) -> 26093 | I107: =VLOOKUP(C107,'HB pops'!$A$2:$E$73,5,FALSE) -> 27993 | K107: Abertawe Bro Morgannwg University LHB | L107: Upper Valleys | M107: 65_74 | N107: 1684 | O107: 1754 | P107: TRUE | Q107: TRUE | R107: TRUE | S107: TRUE | T107: TRUE
A108: Upper Valleys75_84 | B108: Upper Valleys | C108: Abertawe Bro Morgannwg University LHB75_84 | D108: Abertawe Bro Morgannwg University LHB | E108: 75_84 | F108: 885 | G108: 1054 | H108: =VLOOKUP(C108,'HB pops'!$A$2:$E$73,4,FALSE) -> 14828 | I108: =VLOOKUP(C108,'HB pops'!$A$2:$E$73,5,FALSE) -> 18662 | K108: Abertawe Bro Morgannwg University LHB | L108: Upper Valleys | M108: 75_84 | N108: 885 | O108: 1054 | P108: TRUE | Q108: TRUE | R108: TRUE | S108: TRUE | T108: TRUE
A109: Upper Valleys85+ | B109: Upper Valleys | C109: Abertawe Bro Morgannwg University LHB85+ | D109: Abertawe Bro Morgannwg University LHB | E109: 85+ | F109: 259 | G109: 572 | H109: =VLOOKUP(C109,'HB pops'!$A$2:$E$73,4,FALSE) -> 4587 | I109: =VLOOKUP(C109,'HB pops'!$A$2:$E$73,5,FALSE) -> 8957 | K109: Abertawe Bro Morgannwg University LHB | L109: Upper Valleys | M109: 85+ | N109: 259 | O109: 572 | P109: TRUE | Q109: TRUE | R109: TRUE | S109: TRUE | T109: TRUE
A110: Blaenau Gwent East00_02 | B110: Blaenau Gwent East | C110: Aneurin Bevan LHB00_02 | D110: Aneurin Bevan LHB | E110: 00_02 | F110: 655 | G110: 582 | H110: =VLOOKUP(C110,'HB pops'!$A$2:$E$73,4,FALSE) -> 10148 | I110: =VLOOKUP(C110,'HB pops'!$A$2:$E$73,5,FALSE) -> 9829 | K110: Aneurin Bevan LHB | L110: Blaenau Gwent East | M110: 00_02 | N110: 655 | O110: 582 | P110: TRUE | Q110: TRUE | R110: TRUE | S110: TRUE | T110: TRUE
A111: Blaenau Gwent East03_04 | B111: Blaenau Gwent East | C111: Aneurin Bevan LHB03_04 | D111: Aneurin Bevan LHB | E111: 03_04 | F111: 510 | G111: 416 | H111: =VLOOKUP(C111,'HB pops'!$A$2:$E$73,4,FALSE) -> 7247 | I111: =VLOOKUP(C111,'HB pops'!$A$2:$E$73,5,FALSE) -> 6724 | K111: Aneurin Bevan LHB | L111: Blaenau Gwent East | M111: 03_04 | N111: 510 | O111: 416 | P111: TRUE | Q111: TRUE | R111: TRUE | S111: TRUE | T111: TRUE
A112: Blaenau Gwent East05_14 | B112: Blaenau Gwent East | C112: Aneurin Bevan LHB05_14 | D112: Aneurin Bevan LHB | E112: 05_14 | F112: 2047 | G112: 1992 | H112: =VLOOKUP(C112,'HB pops'!$A$2:$E$73,4,FALSE) -> 34162 | I112: =VLOOKUP(C112,'HB pops'!$A$2:$E$73,5,FALSE) -> 32575 | K112: Aneurin Bevan LHB | L112: Blaenau Gwent East | M112: 05_14 | N112: 2047 | O112: 1992 | P112: TRUE | Q112: TRUE | R112: TRUE | S112: TRUE | T112: TRUE
A113: Blaenau Gwent East15_24 | B113: Blaenau Gwent East | C113: Aneurin Bevan LHB15_24 | D113: Aneurin Bevan LHB | E113: 15_24 | F113: 2570 | G113: 2490 | H113: =VLOOKUP(C113,'HB pops'!$A$2:$E$73,4,FALSE) -> 39331 | I113: =VLOOKUP(C113,'HB pops'!$A$2:$E$73,5,FALSE) -> 37293 | K113: Aneurin Bevan LHB | L113: Blaenau Gwent East | M113: 15_24 | N113: 2570 | O113: 2490 | P113: TRUE | Q113: TRUE | R113: TRUE | S113: TRUE | T113: TRUE
A114: Blaenau Gwent East25_44 | B114: Blaenau Gwent East | C114: Aneurin Bevan LHB25_44 | D114: Aneurin Bevan LHB | E114: 25_44 | F114: 5090 | G114: 4710 | H114: =VLOOKUP(C114,'HB pops'!$A$2:$E$73,4,FALSE) -> 76729 | I114: =VLOOKUP(C114,'HB pops'!$A$2:$E$73,5,FALSE) -> 74824 | K114: Aneurin Bevan LHB | L114: Blaenau Gwent East | M114: 25_44 | N114: 5090 | O114: 4710 | P114: TRUE | Q114: TRUE | R114: TRUE | S114: TRUE | T114: TRUE
A115: Blaenau Gwent East45_64 | B115: Blaenau Gwent East | C115: Aneurin Bevan LHB45_64 | D115: Aneurin Bevan LHB | E115: 45_64 | F115: 5261 | G115: 5059 | H115: =VLOOKUP(C115,'HB pops'!$A$2:$E$73,4,FALSE) -> 81293 | I115: =VLOOKUP(C115,'HB pops'!$A$2:$E$73,5,FALSE) -> 79632 | K115: Aneurin Bevan LHB | L115: Blaenau Gwent East | M115: 45_64 | N115: 5261 | O115: 5059 | P115: TRUE | Q115: TRUE | R115: TRUE | S115: TRUE | T115: TRUE
A116: Blaenau Gwent East65_74 | B116: Blaenau Gwent East | C116: Aneurin Bevan LHB65_74 | D116: Aneurin Bevan LHB | E116: 65_74 | F116: 1964 | G116: 1897 | H116: =VLOOKUP(C116,'HB pops'!$A$2:$E$73,4,FALSE) -> 28989 | I116: =VLOOKUP(C116,'HB pops'!$A$2:$E$73,5,FALSE) -> 30334 | K116: Aneurin Bevan LHB | L116: Blaenau Gwent East | M116: 65_74 | N116: 1964 | O116: 1897 | P116: TRUE | Q116: TRUE | R116: TRUE | S116: TRUE | T116: TRUE
A117: Blaenau Gwent East75_84 | B117: Blaenau Gwent East | C117: Aneurin Bevan LHB75_84 | D117: Aneurin Bevan LHB | E117: 75_84 | F117: 1067 | G117: 1215 | H117: =VLOOKUP(C117,'HB pops'!$A$2:$E$73,4,FALSE) -> 15460 | I117: =VLOOKUP(C117,'HB pops'!$A$2:$E$73,5,FALSE) -> 19165 | K117: Aneurin Bevan LHB | L117: Blaenau Gwent East | M117: 75_84 | N117: 1067 | O117: 1215 | P117: TRUE | Q117: TRUE | R117: TRUE | S117: TRUE | T117: TRUE
A118: Blaenau Gwent East85+ | B118: Blaenau Gwent East | C118: Aneurin Bevan LHB85+ | D118: Aneurin Bevan LHB | E118: 85+ | F118: 267 | G118: 567 | H118: =VLOOKUP(C118,'HB pops'!$A$2:$E$73,4,FALSE) -> 4468 | I118: =VLOOKUP(C118,'HB pops'!$A$2:$E$73,5,FALSE) -> 9313 | K118: Aneurin Bevan LHB | L118: Blaenau Gwent East | M118: 85+ | N118: 267 | O118: 567 | P118: TRUE | Q118: TRUE | R118: TRUE | S118: TRUE | T118: TRUE
A119: Blaenau Gwent West00_02 | B119: Blaenau Gwent West | C119: Aneurin Bevan LHB00_02 | D119: Aneurin Bevan LHB | E119: 00_02 | F119: 584 | G119: 542 | H119: =VLOOKUP(C119,'HB pops'!$A$2:$E$73,4,FALSE) -> 10148 | I119: =VLOOKUP(C119,'HB pops'!$A$2:$E$73,5,FALSE) -> 9829 | K119: Aneurin Bevan LHB | L119: Blaenau Gwent West | M119: 00_02 | N119: 584 | O119: 542 | P119: TRUE | Q119: TRUE | R119: TRUE | S119: TRUE | T119: TRUE
A120: Blaenau Gwent West03_04 | B120: Blaenau Gwent West | C120: Aneurin Bevan LHB03_04 | D120: Aneurin Bevan LHB | E120: 03_04 | F120: 379 | G120: 365 | H120: =VLOOKUP(C120,'HB pops'!$A$2:$E$73,4,FALSE) -> 7247 | I120: =VLOOKUP(C120,'HB pops'!$A$2:$E$73,5,FALSE) -> 6724 | K120: Aneurin Bevan LHB | L120: Blaenau Gwent West | M120: 03_04 | N120: 379 | O120: 365 | P120: TRUE | Q120: TRUE | R120: TRUE | S120: TRUE | T120: TRUE
A121: Blaenau Gwent West05_14 | B121: Blaenau Gwent West | C121: Aneurin Bevan LHB05_14 | D121: Aneurin Bevan LHB | E121: 05_14 | F121: 1800 | G121: 1893 | H121: =VLOOKUP(C121,'HB pops'!$A$2:$E$73,4,FALSE) -> 34162 | I121: =VLOOKUP(C121,'HB pops'!$A$2:$E$73,5,FALSE) -> 32575 | K121: Aneurin Bevan LHB | L121: Blaenau Gwent West | M121: 05_14 | N121: 1800 | O121: 1893 | P121: TRUE | Q121: TRUE | R121: TRUE | S121: TRUE | T121: TRUE
A122: Blaenau Gwent West15_24 | B122: Blaenau Gwent West | C122: Aneurin Bevan LHB15_24 | D122: Aneurin Bevan LHB | E122: 15_24 | F122: 2304 | G122: 2281 | H122: =VLOOKUP(C122,'HB pops'!$A$2:$E$73,4,FALSE) -> 39331 | I122: =VLOOKUP(C122,'HB pops'!$A$2:$E$73,5,FALSE) -> 37293 | K122: Aneurin Bevan LHB | L122: Blaenau Gwent West | M122: 15_24 | N122: 2304 | O122: 2281 | P122: TRUE | Q122: TRUE | R122: TRUE | S122: TRUE | T122: TRUE
A123: Blaenau Gwent West25_44 | B123: Blaenau Gwent West | C123: Aneurin Bevan LHB25_44 | D123: Aneurin Bevan LHB | E123: 25_44 | F123: 4460 | G123: 4467 | H123: =VLOOKUP(C123,'HB pops'!$A$2:$E$73,4,FALSE) -> 76729 | I123: =VLOOKUP(C123,'HB pops'!$A$2:$E$73,5,FALSE) -> 74824 | K123: Aneurin Bevan LHB | L123: Blaenau Gwent West | M123: 25_44 | N123: 4460 | O123: 4467 | P123: TRUE | Q123: TRUE | R123: TRUE | S123: TRUE | T123: TRUE
A124: Blaenau Gwent West45_64 | B124: Blaenau Gwent West | C124: Aneurin Bevan LHB45_64 | D124: Aneurin Bevan LHB | E124: 45_64 | F124: 4726 | G124: 4691 | H124: =VLOOKUP(C124,'HB pops'!$A$2:$E$73,4,FALSE) -> 81293 | I124: =VLOOKUP(C124,'HB pops'!$A$2:$E$73,5,FALSE) -> 79632 | K124: Aneurin Bevan LHB | L124: Blaenau Gwent West | M124: 45_64 | N124: 4726 | O124: 4691 | P124: TRUE | Q124: TRUE | R124: TRUE | S124: TRUE | T124: TRUE
A125: Blaenau Gwent West65_74 | B125: Blaenau Gwent West | C125: Aneurin Bevan LHB65_74 | D125: Aneurin Bevan LHB | E125: 65_74 | F125: 1851 | G125: 1897 | H125: =VLOOKUP(C125,'HB pops'!$A$2:$E$73,4,FALSE) -> 28989 | I125: =VLOOKUP(C125,'HB pops'!$A$2:$E$73,5,FALSE) -> 30334 | K125: Aneurin Bevan LHB | L125: Blaenau Gwent West | M125: 65_74 | N125: 1851 | O125: 1897 | P125: TRUE | Q125: TRUE | R125: TRUE | S125: TRUE | T125: TRUE
A126: Blaenau Gwent West75_84 | B126: Blaenau Gwent West | C126: Aneurin Bevan LHB75_84 | D126: Aneurin Bevan LHB | E126: 75_84 | F126: 847 | G126: 1106 | H126: =VLOOKUP(C126,'HB pops'!$A$2:$E$73,4,FALSE) -> 15460 | I126: =VLOOKUP(C126,'HB pops'!$A$2:$E$73,5,FALSE) -> 19165 | K126: Aneurin Bevan LHB | L126: Blaenau Gwent West | M126: 75_84 | N126: 847 | O126: 1106 | P126: TRUE | Q126: TRUE | R126: TRUE | S126: TRUE | T126: TRUE
A127: Blaenau Gwent West85+ | B127: Blaenau Gwent West | C127: Aneurin Bevan LHB85+ | D127: Aneurin Bevan LHB | E127: 85+ | F127: 233 | G127: 520 | H127: =VLOOKUP(C127,'HB pops'!$A$2:$E$73,4,FALSE) -> 4468 | I127: =VLOOKUP(C127,'HB pops'!$A$2:$E$73,5,FALSE) -> 9313 | K127: Aneurin Bevan LHB | L127: Blaenau Gwent West | M127: 85+ | N127: 233 | O127: 520 | P127: TRUE | Q127: TRUE | R127: TRUE | S127: TRUE | T127: TRUE
A128: Caerphilly East00_02 | B128: Caerphilly East | C128: Aneurin Bevan LHB00_02 | D128: Aneurin Bevan LHB | E128: 00_02 | F128: 1025 | G128: 977 | H128: =VLOOKUP(C128,'HB pops'!$A$2:$E$73,4,FALSE) -> 10148 | I128: =VLOOKUP(C128,'HB pops'!$A$2:$E$73,5,FALSE) -> 9829 | K128: Aneurin Bevan LHB | L128: Caerphilly East | M128: 00_02 | N128: 1025 | O128: 977 | P128: TRUE | Q128: TRUE | R128: TRUE | S128: TRUE | T128: TRUE
A129: Caerphilly East03_04 | B129: Caerphilly East | C129: Aneurin Bevan LHB03_04 | D129: Aneurin Bevan LHB | E129: 03_04 | F129: 691 | G129: 701 | H129: =VLOOKUP(C129,'HB pops'!$A$2:$E$73,4,FALSE) -> 7247 | I129: =VLOOKUP(C129,'HB pops'!$A$2:$E$73,5,FALSE) -> 6724 | K129: Aneurin Bevan LHB | L129: Caerphilly East | M129: 03_04 | N129: 691 | O129: 701 | P129: TRUE | Q129: TRUE | R129: TRUE | S129: TRUE | T129: TRUE
A130: Caerphilly East05_14 | B130: Caerphilly East | C130: Aneurin Bevan LHB05_14 | D130: Aneurin Bevan LHB | E130: 05_14 | F130: 3545 | G130: 3340 | H130: =VLOOKUP(C130,'HB pops'!$A$2:$E$73,4,FALSE) -> 34162 | I130: =VLOOKUP(C130,'HB pops'!$A$2:$E$73,5,FALSE) -> 32575 | K130: Aneurin Bevan LHB | L130: Caerphilly East | M130: 05_14 | N130: 3545 | O130: 3340 | P130: TRUE | Q130: TRUE | R130: TRUE | S130: TRUE | T130: TRUE
A131: =B131&E131 -> Caerphilly East15_24 | B131: Caerphilly East | C131: =D131&E131 -> Aneurin Bevan LHB15_24 | D131: Aneurin Bevan LHB | E131: 15_24 | F131: 3831 | G131: 3676 | H131: =VLOOKUP(C131,'HB pops'!$A$2:$E$73,4,FALSE) -> 39331 | I131: =VLOOKUP(C131,'HB pops'!$A$2:$E$73,5,FALSE) -> 37293 | K131: Aneurin Bevan LHB | L131: Caerphilly East | M131: 15_24 | N131: 3831 | O131: 3676 | P131: TRUE | Q131: TRUE | R131: TRUE | S131: TRUE | T131: TRUE
A132: Caerphilly East25_44 | B132: Caerphilly East | C132: Aneurin Bevan LHB25_44 | D132: Aneurin Bevan LHB | E132: 25_44 | F132: 7760 | G132: 7932 | H132: =VLOOKUP(C132,'HB pops'!$A$2:$E$73,4,FALSE) -> 76729 | I132: =VLOOKUP(C132,'HB pops'!$A$2:$E$73,5,FALSE) -> 74824 | K132: Aneurin Bevan LHB | L132: Caerphilly East | M132: 25_44 | N132: 7760 | O132: 7932 | P132: TRUE | Q132: TRUE | R132: TRUE | S132: TRUE | T132: TRUE
A133: Caerphilly East45_64 | B133: Caerphilly East | C133: Aneurin Bevan LHB45_64 | D133: Aneurin Bevan LHB | E133: 45_64 | F133: 8000 | G133: 7918 | H133: =VLOOKUP(C133,'HB pops'!$A$2:$E$73,4,FALSE) -> 81293 | I133: =VLOOKUP(C133,'HB pops'!$A$2:$E$73,5,FALSE) -> 79632 | K133: Aneurin Bevan LHB | L133: Caerphilly East | M133: 45_64 | N133: 8000 | O133: 7918 | P133: TRUE | Q133: TRUE | R133: TRUE | S133: TRUE | T133: TRUE
A134: Caerphilly East65_74 | B134: Caerphilly East | C134: Aneurin Bevan LHB65_74 | D134: Aneurin Bevan LHB | E134: 65_74 | F134: 2871 | G134: 2928 | H134: =VLOOKUP(C134,'HB pops'!$A$2:$E$73,4,FALSE) -> 28989 | I134: =VLOOKUP(C134,'HB pops'!$A$2:$E$73,5,FALSE) -> 30334 | K134: Aneurin Bevan LHB | L134: Caerphilly East | M134: 65_74 | N134: 2871 | O134: 2928 | P134: TRUE | Q134: TRUE | R134: TRUE | S134: TRUE | T134: TRUE
A135: Caerphilly East75_84 | B135: Caerphilly East | C135: Aneurin Bevan LHB75_84 | D135: Aneurin Bevan LHB | E135: 75_84 | F135: 1455 | G135: 1840 | H135: =VLOOKUP(C135,'HB pops'!$A$2:$E$73,4,FALSE) -> 15460 | I135: =VLOOKUP(C135,'HB pops'!$A$2:$E$73,5,FALSE) -> 19165 | K135: Aneurin Bevan LHB | L135: Caerphilly East | M135: 75_84 | N135: 1455 | O135: 1840 | P135: TRUE | Q135: TRUE | R135: TRUE | S135: TRUE | T135: TRUE
A136: Caerphilly East85+ | B136: Caerphilly East | C136: Aneurin Bevan LHB85+ | D136: Aneurin Bevan LHB | E136: 85+ | F136: 396 | G136: 957 | H136: =VLOOKUP(C136,'HB pops'!$A$2:$E$73,4,FALSE) -> 4468 | I136: =VLOOKUP(C136,'HB pops'!$A$2:$E$73,5,FALSE) -> 9313 | K136: Aneurin Bevan LHB | L136: Caerphilly East | M136: 85+ | N136: 396 | O136: 957 | P136: TRUE | Q136: TRUE | R136: TRUE | S136: TRUE | T136: TRUE
A137: Caerphilly North00_02 | B137: Caerphilly North | C137: Aneurin Bevan LHB00_02 | D137: Aneurin Bevan LHB | E137: 00_02 | F137: 1180 | G137: 1121 | H137: =VLOOKUP(C137,'HB pops'!$A$2:$E$73,4,FALSE) -> 10148 | I137: =VLOOKUP(C137,'HB pops'!$A$2:$E$73,5,FALSE) -> 9829 | K137: Aneurin Bevan LHB | L137: Caerphilly North | M137: 00_02 | N137: 1180 | O137: 1121 | P137: TRUE | Q137: TRUE | R137: TRUE | S137: TRUE | T137: TRUE
A138: Caerphilly North03_04 | B138: Caerphilly North | C138: Aneurin Bevan LHB03_04 | D138: Aneurin Bevan LHB | E138: 03_04 | F138: 806 | G138: 773 | H138: =VLOOKUP(C138,'HB pops'!$A$2:$E$73,4,FALSE) -> 7247 | I138: =VLOOKUP(C138,'HB pops'!$A$2:$E$73,5,FALSE) -> 6724 | K138: Aneurin Bevan LHB | L138: Caerphilly North | M138: 03_04 | N138: 806 | O138: 773 | P138: TRUE | Q138: TRUE | R138: TRUE | S138: TRUE | T138: TRUE
A139: Caerphilly North05_14 | B139: Caerphilly North | C139: Aneurin Bevan LHB05_14 | D139: Aneurin Bevan LHB | E139: 05_14 | F139: 4017 | G139: 3678 | H139: =VLOOKUP(C139,'HB pops'!$A$2:$E$73,4,FALSE) -> 34162 | I139: =VLOOKUP(C139,'HB pops'!$A$2:$E$73,5,FALSE) -> 32575 | K139: Aneurin Bevan LHB | L139: Caerphilly North | M139: 05_14 | N139: 4017 | O139: 3678 | P139: TRUE | Q139: TRUE | R139: TRUE | S139: TRUE | T139: TRUE
A140: Caerphilly North15_24 | B140: Caerphilly North | C140: Aneurin Bevan LHB15_24 | D140: Aneurin Bevan LHB | E140: 15_24 | F140: 4730 | G140: 4305 | H140: =VLOOKUP(C140,'HB pops'!$A$2:$E$73,4,FALSE) -> 39331 | I140: =VLOOKUP(C140,'HB pops'!$A$2:$E$73,5,FALSE) -> 37293 | K140: Aneurin Bevan LHB | L140: Caerphilly North | M140: 15_24 | N140: 4730 | O140: 4305 | P140: =K140=D140 -> TRUE | Q140: =L140=B140 -> TRUE | R140: =M140=E140 -> TRUE | S140: =N140=F140 -> TRUE | T140: =O140=G140 -> TRUE
A141: Caerphilly North25_44 | B141: Caerphilly North | C141: Aneurin Bevan LHB25_44 | D141: Aneurin Bevan LHB | E141: 25_44 | F141: 9008 | G141: 8748 | H141: =VLOOKUP(C141,'HB pops'!$A$2:$E$73,4,FALSE) -> 76729 | I141: =VLOOKUP(C141,'HB pops'!$A$2:$E$73,5,FALSE) -> 74824 | K141: Aneurin Bevan LHB | L141: Caerphilly North | M141: 25_44 | N141: 9008 | O141: 8748 | P141: TRUE | Q141: TRUE | R141: TRUE | S141: TRUE | T141: TRUE
A142: Caerphilly North45_64 | B142: Caerphilly North | C142: Aneurin Bevan LHB45_64 | D142: Aneurin Bevan LHB | E142: 45_64 | F142: 9274 | G142: 9244 | H142: =VLOOKUP(C142,'HB pops'!$A$2:$E$73,4,FALSE) -> 81293 | I142: =VLOOKUP(C142,'HB pops'!$A$2:$E$73,5,FALSE) -> 79632 | K142: Aneurin Bevan LHB | L142: Caerphilly North | M142: 45_64 | N142: 9274 | O142: 9244 | P142: TRUE | Q142: TRUE | R142: TRUE | S142: TRUE | T142: TRUE
A143: Caerphilly North65_74 | B143: Caerphilly North | C143: Aneurin Bevan LHB65_74 | D143: Aneurin Bevan LHB | E143: 65_74 | F143: 3397 | G143: 3457 | H143: =VLOOKUP(C143,'HB pops'!$A$2:$E$73,4,FALSE) -> 28989 | I143: =VLOOKUP(C143,'HB pops'!$A$2:$E$73,5,FALSE) -> 30334 | K143: Aneurin Bevan LHB | L143: Caerphilly North | M143: 65_74 | N143: 3397 | O143: 3457 | P143: TRUE | Q143: TRUE | R143: TRUE | S143: TRUE | T143: TRUE
A144: Caerphilly North75_84 | B144: Caerphilly North | C144: Aneurin Bevan LHB75_84 | D144: Aneurin Bevan LHB | E144: 75_84 | F144: 1622 | G144: 2075 | H144: =VLOOKUP(C144,'HB pops'!$A$2:$E$73,4,FALSE) -> 15460 | I144: =VLOOKUP(C144,'HB pops'!$A$2:$E$73,5,FALSE) -> 19165 | K144: Aneurin Bevan LHB | L144: Caerphilly North | M144: 75_84 | N144: 1622 | O144: 2075 | P144: TRUE | Q144: TRUE | R144: TRUE | S144: TRUE | T144: TRUE
A145: Caerphilly North85+ | B145: Caerphilly North | C145: Aneurin Bevan LHB85+ | D145: Aneurin Bevan LHB | E145: 85+ | F145: 432 | G145: 915 | H145: =VLOOKUP(C145,'HB pops'!$A$2:$E$73,4,FALSE) -> 4468 | I145: =VLOOKUP(C145,'HB pops'!$A$2:$E$73,5,FALSE) -> 9313 | K145: Aneurin Bevan LHB | L145: Caerphilly North | M145: 85+ | N145: 432 | O145: 915 | P145: TRUE | Q145: TRUE | R145: TRUE | S145: TRUE | T145: TRUE
A146: Caerphilly South00_02 | B146: Caerphilly South | C146: Aneurin Bevan LHB00_02 | D146: Aneurin Bevan LHB | E146: 00_02 | F146: 980 | G146: 959 | H146: =VLOOKUP(C146,'HB pops'!$A$2:$E$73,4,FALSE) -> 10148 | I146: =VLOOKUP(C146,'HB pops'!$A$2:$E$73,5,FALSE) -> 9829 | K146: Aneurin Bevan LHB | L146: Caerphilly South | M146: 00_02 | N146: 980 | O146: 959 | P146: TRUE | Q146: TRUE | R146: TRUE | S146: TRUE | T146: TRUE
A147: Caerphilly South03_04 | B147: Caerphilly South | C147: Aneurin Bevan LHB03_04 | D147: Aneurin Bevan LHB | E147: 03_04 | F147: 747 | G147: 666 | H147: =VLOOKUP(C147,'HB pops'!$A$2:$E$73,4,FALSE) -> 7247 | I147: =VLOOKUP(C147,'HB pops'!$A$2:$E$73,5,FALSE) -> 6724 | K147: Aneurin Bevan LHB | L147: Caerphilly South | M147: 03_04 | N147: 747 | O147: 666 | P147: TRUE | Q147: TRUE | R147: TRUE | S147: TRUE | T147: TRUE
A148: Caerphilly South05_14 | B148: Caerphilly South | C148: Aneurin Bevan LHB05_14 | D148: Aneurin Bevan LHB | E148: 05_14 | F148: 3331 | G148: 3098 | H148: =VLOOKUP(C148,'HB pops'!$A$2:$E$73,4,FALSE) -> 34162 | I148: =VLOOKUP(C148,'HB pops'!$A$2:$E$73,5,FALSE) -> 32575 | K148: Aneurin Bevan LHB | L148: Caerphilly South | M148: 05_14 | N148: 3331 | O148: 3098 | P148: TRUE | Q148: TRUE | R148: TRUE | S148: TRUE | T148: TRUE
A149: Caerphilly South15_24 | B149: Caerphilly South | C149: Aneurin Bevan LHB15_24 | D149: Aneurin Bevan LHB | E149: 15_24 | F149: 3507 | G149: 3391 | H149: =VLOOKUP(C149,'HB pops'!$A$2:$E$73,4,FALSE) -> 39331 | I149: =VLOOKUP(C149,'HB pops'!$A$2:$E$73,5,FALSE) -> 37293 | K149: Aneurin Bevan LHB | L149: Caerphilly South | M149: 15_24 | N149: 3507 | O149: 3391 | P149: TRUE | Q149: TRUE | R149: TRUE | S149: TRUE | T149: TRUE
A150: Caerphilly South25_44 | B150: Caerphilly South | C150: Aneurin Bevan LHB25_44 | D150: Aneurin Bevan LHB | E150: 25_44 | F150: 7499 | G150: 7310 | H150: =VLOOKUP(C150,'HB pops'!$A$2:$E$73,4,FALSE) -> 76729 | I150: =VLOOKUP(C150,'HB pops'!$A$2:$E$73,5,FALSE) -> 74824 | K150: Aneurin Bevan LHB | L150: Caerphilly South | M150: 25_44 | N150: 7499 | O150: 7310 | P150: TRUE | Q150: TRUE | R150: TRUE | S150: TRUE | T150: TRUE
A151: Caerphilly South45_64 | B151: Caerphilly South | C151: Aneurin Bevan LHB45_64 | D151: Aneurin Bevan LHB | E151: 45_64 | F151: 7478 | G151: 7305 | H151: =VLOOKUP(C151,'HB pops'!$A$2:$E$73,4,FALSE) -> 81293 | I151: =VLOOKUP(C151,'HB pops'!$A$2:$E$73,5,FALSE) -> 79632 | K151: Aneurin Bevan LHB | L151: Caerphilly South | M151: 45_64 | N151: 7478 | O151: 7305 | P151: TRUE | Q151: TRUE | R151: TRUE | S151: TRUE | T151: TRUE
A152: Caerphilly South65_74 | B152: Caerphilly South | C152: Aneurin Bevan LHB65_74 | D152: Aneurin Bevan LHB | E152: 65_74 | F152: 2549 | G152: 2769 | H152: =VLOOKUP(C152,'HB pops'!$A$2:$E$73,4,FALSE) -> 28989 | I152: =VLOOKUP(C152,'HB pops'!$A$2:$E$73,5,FALSE) -> 30334 | K152: Aneurin Bevan LHB | L152: Caerphilly South | M152: 65_74 | N152: 2549 | O152: 2769 | P152: TRUE | Q152: TRUE | R152: TRUE | S152: TRUE | T152: TRUE
A153: Caerphilly South75_84 | B153: Caerphilly South | C153: Aneurin Bevan LHB75_84 | D153: Aneurin Bevan LHB | E153: 75_84 | F153: 1306 | G153: 1567 | H153: =VLOOKUP(C153,'HB pops'!$A$2:$E$73,4,FALSE) -> 15460 | I153: =VLOOKUP(C153,'HB pops'!$A$2:$E$73,5,FALSE) -> 19165 | K153: Aneurin Bevan LHB | L153: Caerphilly South | M153: 75_84 | N153: 1306 | O153: 1567 | P153: TRUE | Q153: TRUE | R153: TRUE | S153: TRUE | T153: TRUE
A154: Caerphilly South85+ | B154: Caerphilly South | C154: Aneurin Bevan LHB85+ | D154: Aneurin Bevan LHB | E154: 85+ | F154: 342 | G154: 650 | H154: =VLOOKUP(C154,'HB pops'!$A$2:$E$73,4,FALSE) -> 4468 | I154: =VLOOKUP(C154,'HB pops'!$A$2:$E$73,5,FALSE) -> 9313 | K154: Aneurin Bevan LHB | L154: Caerphilly South | M154: 85+ | N154: 342 | O154: 650 | P154: TRUE | Q154: TRUE | R154: TRUE | S154: TRUE | T154: TRUE
A155: Monmouthshire North00_02 | B155: Monmouthshire North | C155: Aneurin Bevan LHB00_02 | D155: Aneurin Bevan LHB | E155: 00_02 | F155: 633 | G155: 647 | H155: =VLOOKUP(C155,'HB pops'!$A$2:$E$73,4,FALSE) -> 10148 | I155: =VLOOKUP(C155,'HB pops'!$A$2:$E$73,5,FALSE) -> 9829 | K155: Aneurin Bevan LHB | L155: Monmouthshire North | M155: 00_02 | N155: 633 | O155: 647 | P155: TRUE | Q155: TRUE | R155: TRUE | S155: TRUE | T155: TRUE
A156: Monmouthshire North03_04 | B156: Monmouthshire North | C156: Aneurin Bevan LHB03_04 | D156: Aneurin Bevan LHB | E156: 03_04 | F156: 482 | G156: 482 | H156: =VLOOKUP(C156,'HB pops'!$A$2:$E$73,4,FALSE) -> 7247 | I156: =VLOOKUP(C156,'HB pops'!$A$2:$E$73,5,FALSE) -> 6724 | K156: Aneurin Bevan LHB | L156: Monmouthshire North | M156: 03_04 | N156: 482 | O156: 482 | P156: TRUE | Q156: TRUE | R156: TRUE | S156: TRUE | T156: TRUE
A157: Monmouthshire North05_14 | B157: Monmouthshire North | C157: Aneurin Bevan LHB05_14 | D157: Aneurin Bevan LHB | E157: 05_14 | F157: 2657 | G157: 2599 | H157: =VLOOKUP(C157,'HB pops'!$A$2:$E$73,4,FALSE) -> 34162 | I157: =VLOOKUP(C157,'HB pops'!$A$2:$E$73,5,FALSE) -> 32575 | K157: Aneurin Bevan LHB | L157: Monmouthshire North | M157: 05_14 | N157: 2657 | O157: 2599 | P157: TRUE | Q157: TRUE | R157: TRUE | S157: TRUE | T157: TRUE
A158: Monmouthshire North15_24 | B158: Monmouthshire North | C158: Aneurin Bevan LHB15_24 | D158: Aneurin Bevan LHB | E158: 15_24 | F158: 2969 | G158: 2629 | H158: =VLOOKUP(C158,'HB pops'!$A$2:$E$73,4,FALSE) -> 39331 | I158: =VLOOKUP(C158,'HB pops'!$A$2:$E$73,5,FALSE) -> 37293 | K158: Aneurin Bevan LHB | L158: Monmouthshire North | M158: 15_24 | N158: 2969 | O158: 2629 | P158: TRUE | Q158: TRUE | R158: TRUE | S158: TRUE | T158: TRUE
A159: Monmouthshire North25_44 | B159: Monmouthshire North | C159: Aneurin Bevan LHB25_44 | D159: Aneurin Bevan LHB | E159: 25_44 | F159: 5243 | G159: 5229 | H159: =VLOOKUP(C159,'HB pops'!$A$2:$E$73,4,FALSE) -> 76729 | I159: =VLOOKUP(C159,'HB pops'!$A$2:$E$73,5,FALSE) -> 74824 | K159: Aneurin Bevan LHB | L159: Monmouthshire North | M159: 25_44 | N159: 5243 | O159: 5229 | P159: TRUE | Q159: TRUE | R159: TRUE | S159: TRUE | T159: TRUE
A160: Monmouthshire North45_64 | B160: Monmouthshire North | C160: Aneurin Bevan LHB45_64 | D160: Aneurin Bevan LHB | E160: 45_64 | F160: 7725 | G160: 7833 | H160: =VLOOKUP(C160,'HB pops'!$A$2:$E$73,4,FALSE) -> 81293 | I160: =VLOOKUP(C160,'HB pops'!$A$2:$E$73,5,FALSE) -> 79632 | K160: Aneurin Bevan LHB | L160: Monmouthshire North | M160: 45_64 | N160: 7725 | O160: 7833 | P160: TRUE | Q160: TRUE | R160: TRUE | S160: TRUE | T160: TRUE
A161: Monmouthshire North65_74 | B161: Monmouthshire North | C161: Aneurin Bevan LHB65_74 | D161: Aneurin Bevan LHB | E161: 65_74 | F161: 3092 | G161: 3307 | H161: =VLOOKUP(C161,'HB pops'!$A$2:$E$73,4,FALSE) -> 28989 | I161: =VLOOKUP(C161,'HB pops'!$A$2:$E$73,5,FALSE) -> 30334 | K161: Aneurin Bevan LHB | L161: Monmouthshire North | M161: 65_74 | N161: 3092 | O161: 3307 | P161: TRUE | Q161: TRUE | R161: TRUE | S161: TRUE | T161: TRUE
A162: Monmouthshire North75_84 | B162: Monmouthshire North | C162: Aneurin Bevan LHB75_84 | D162: Aneurin Bevan LHB | E162: 75_84 | F162: 1740 | G162: 2020 | H162: =VLOOKUP(C162,'HB pops'!$A$2:$E$73,4,FALSE) -> 15460 | I162: =VLOOKUP(C162,'HB pops'!$A$2:$E$73,5,FALSE) -> 19165 | K162: Aneurin Bevan LHB | L162: Monmouthshire North | M162: 75_84 | N162: 1740 | O162: 2020 | P162: TRUE | Q162: TRUE | R162: TRUE | S162: TRUE | T162: TRUE
A163: Monmouthshire North85+ | B163: Monmouthshire North | C163: Aneurin Bevan LHB85+ | D163: Aneurin Bevan LHB | E163: 85+ | F163: 540 | G163: 1141 | H163: =VLOOKUP(C163,'HB pops'!$A$2:$E$73,4,FALSE) -> 4468 | I163: =VLOOKUP(C163,'HB pops'!$A$2:$E$73,5,FALSE) -> 9313 | K163: Aneurin Bevan LHB | L163: Monmouthshire North | M163: 85+ | N163: 540 | O163: 1141 | P163: TRUE | Q163: TRUE | R163: TRUE | S163: TRUE | T163: TRUE
A164: Monmouthshire South00_02 | B164: Monmouthshire South | C164: Aneurin Bevan LHB00_02 | D164: Aneurin Bevan LHB | E164: 00_02 | F164: 733 | G164: 696 | H164: =VLOOKUP(C164,'HB pops'!$A$2:$E$73,4,FALSE) -> 10148 | I164: =VLOOKUP(C164,'HB pops'!$A$2:$E$73,5,FALSE) -> 9829 | K164: Aneurin Bevan LHB | L164: Monmouthshire South | M164: 00_02 | N164: 733 | O164: 696 | P164: TRUE | Q164: TRUE | R164: TRUE | S164: TRUE | T164: TRUE
A165: Monmouthshire South03_04 | B165: Monmouthshire South | C165: Aneurin Bevan LHB03_04 | D165: Aneurin Bevan LHB | E165: 03_04 | F165: 576 | G165: 489 | H165: =VLOOKUP(C165,'HB pops'!$A$2:$E$73,4,FALSE) -> 7247 | I165: =VLOOKUP(C165,'HB pops'!$A$2:$E$73,5,FALSE) -> 6724 | K165: Aneurin Bevan LHB | L165: Monmouthshire South | M165: 03_04 | N165: 576 | O165: 489 | P165: TRUE | Q165: TRUE | R165: TRUE | S165: TRUE | T165: TRUE
A166: Monmouthshire South05_14 | B166: Monmouthshire South | C166: Aneurin Bevan LHB05_14 | D166: Aneurin Bevan LHB | E166: 05_14 | F166: 2702 | G166: 2480 | H166: =VLOOKUP(C166,'HB pops'!$A$2:$E$73,4,FALSE) -> 34162 | I166: =VLOOKUP(C166,'HB pops'!$A$2:$E$73,5,FALSE) -> 32575 | K166: Aneurin Bevan LHB | L166: Monmouthshire South | M166: 05_14 | N166: 2702 | O166: 2480 | P166: TRUE | Q166: TRUE | R166: TRUE | S166: TRUE | T166: TRUE
A167: Monmouthshire South15_24 | B167: Monmouthshire South | C167: Aneurin Bevan LHB15_24 | D167: Aneurin Bevan LHB | E167: 15_24 | F167: 2898 | G167: 2615 | H167: =VLOOKUP(C167,'HB pops'!$A$2:$E$73,4,FALSE) -> 39331 | I167: =VLOOKUP(C167,'HB pops'!$A$2:$E$73,5,FALSE) -> 37293 | K167: Aneurin Bevan LHB | L167: Monmouthshire South | M167: 15_24 | N167: 2898 | O167: 2615 | P167: TRUE | Q167: TRUE | R167: TRUE | S167: TRUE | T167: TRUE
A168: Monmouthshire South25_44 | B168: Monmouthshire South | C168: Aneurin Bevan LHB25_44 | D168: Aneurin Bevan LHB | E168: 25_44 | F168: 5461 | G168: 5588 | H168: =VLOOKUP(C168,'HB pops'!$A$2:$E$73,4,FALSE) -> 76729 | I168: =VLOOKUP(C168,'HB pops'!$A$2:$E$73,5,FALSE) -> 74824 | K168: Aneurin Bevan LHB | L168: Monmouthshire South | M168: 25_44 | N168: 5461 | O168: 5588 | P168: TRUE | Q168: TRUE | R168: TRUE | S168: TRUE | T168: TRUE
A169: Monmouthshire South45_64 | B169: Monmouthshire South | C169: Aneurin Bevan LHB45_64 | D169: Aneurin Bevan LHB | E169: 45_64 | F169: 6785 | G169: 6738 | H169: =VLOOKUP(C169,'HB pops'!$A$2:$E$73,4,FALSE) -> 81293 | I169: =VLOOKUP(C169,'HB pops'!$A$2:$E$73,5,FALSE) -> 79632 | K169: Aneurin Bevan LHB | L169: Monmouthshire South | M169: 45_64 | N169: 6785 | O169: 6738 | P169: TRUE | Q169: TRUE | R169: TRUE | S169: TRUE | T169: TRUE
A170: Monmouthshire South65_74 | B170: Monmouthshire South | C170: Aneurin Bevan LHB65_74 | D170: Aneurin Bevan LHB | E170: 65_74 | F170: 2389 | G170: 2510 | H170: =VLOOKUP(C170,'HB pops'!$A$2:$E$73,4,FALSE) -> 28989 | I170: =VLOOKUP(C170,'HB pops'!$A$2:$E$73,5,FALSE) -> 30334 | K170: Aneurin Bevan LHB | L170: Monmouthshire South | M170: 65_74 | N170: 2389 | O170: 2510 | P170: TRUE | Q170: TRUE | R170: TRUE | S170: TRUE | T170: TRUE
A171: Monmouthshire South75_84 | B171: Monmouthshire South | C171: Aneurin Bevan LHB75_84 | D171: Aneurin Bevan LHB | E171: 75_84 | F171: 1321 | G171: 1581 | H171: =VLOOKUP(C171,'HB pops'!$A$2:$E$73,4,FALSE) -> 15460 | I171: =VLOOKUP(C171,'HB pops'!$A$2:$E$73,5,FALSE) -> 19165 | K171: Aneurin Bevan LHB | L171: Monmouthshire South | M171: 75_84 | N171: 1321 | O171: 1581 | P171: TRUE | Q171: TRUE | R171: TRUE | S171: TRUE | T171: TRUE
A172: Monmouthshire South85+ | B172: Monmouthshire South | C172: Aneurin Bevan LHB85+ | D172: Aneurin Bevan LHB | E172: 85+ | F172: 383 | G172: 791 | H172: =VLOOKUP(C172,'HB pops'!$A$2:$E$73,4,FALSE) -> 4468 | I172: =VLOOKUP(C172,'HB pops'!$A$2:$E$73,5,FALSE) -> 9313 | K172: Aneurin Bevan LHB | L172: Monmouthshire South | M172: 85+ | N172: 383 | O172: 791 | P172: TRUE | Q172: TRUE | R172: TRUE | S172: TRUE | T172: TRUE
A173: Newport Central00_02 | B173: Newport Central | C173: Aneurin Bevan LHB00_02 | D173: Aneurin Bevan LHB | E173: 00_02 | F173: 798 | G173: 772 | H173: =VLOOKUP(C173,'HB pops'!$A$2:$E$73,4,FALSE) -> 10148 | I173: =VLOOKUP(C173,'HB pops'!$A$2:$E$73,5,FALSE) -> 9829 | K173: Aneurin Bevan LHB | L173: Newport Central | M173: 00_02 | N173: 798 | O173: 772 | P173: TRUE | Q173: TRUE | R173: TRUE | S173: TRUE | T173: TRUE
A174: Newport Central03_04 | B174: Newport Central | C174: Aneurin Bevan LHB03_04 | D174: Aneurin Bevan LHB | E174: 03_04 | F174: 551 | G174: 545 | H174: =VLOOKUP(C174,'HB pops'!$A$2:$E$73,4,FALSE) -> 7247 | I174: =VLOOKUP(C174,'HB pops'!$A$2:$E$73,5,FALSE) -> 6724 | K174: Aneurin Bevan LHB | L174: Newport Central | M174: 03_04 | N174: 551 | O174: 545 | P174: TRUE | Q174: TRUE | R174: TRUE | S174: TRUE | T174: TRUE
A175: Newport Central05_14 | B175: Newport Central | C175: Aneurin Bevan LHB05_14 | D175: Aneurin Bevan LHB | E175: 05_14 | F175: 2709 | G175: 2704 | H175: =VLOOKUP(C175,'HB pops'!$A$2:$E$73,4,FALSE) -> 34162 | I175: =VLOOKUP(C175,'HB pops'!$A$2:$E$73,5,FALSE) -> 32575 | K175: Aneurin Bevan LHB | L175: Newport Central | M175: 05_14 | N175: 2709 | O175: 2704 | P175: TRUE | Q175: TRUE | R175: TRUE | S175: TRUE | T175: TRUE
A176: Newport Central15_24 | B176: Newport Central | C176: Aneurin Bevan LHB15_24 | D176: Aneurin Bevan LHB | E176: 15_24 | F176: 3198 | G176: 3242 | H176: =VLOOKUP(C176,'HB pops'!$A$2:$E$73,4,FALSE) -> 39331 | I176: =VLOOKUP(C176,'HB pops'!$A$2:$E$73,5,FALSE) -> 37293 | K176: Aneurin Bevan LHB | L176: Newport Central | M176: 15_24 | N176: 3198 | O176: 3242 | P176: TRUE | Q176: TRUE | R176: TRUE | S176: TRUE | T176: TRUE
A177: Newport Central25_44 | B177: Newport Central | C177: Aneurin Bevan LHB25_44 | D177: Aneurin Bevan LHB | E177: 25_44 | F177: 6384 | G177: 6161 | H177: =VLOOKUP(C177,'HB pops'!$A$2:$E$73,4,FALSE) -> 76729 | I177: =VLOOKUP(C177,'HB pops'!$A$2:$E$73,5,FALSE) -> 74824 | K177: Aneurin Bevan LHB | L177: Newport Central | M177: 25_44 | N177: 6384 | O177: 6161 | P177: TRUE | Q177: TRUE | R177: TRUE | S177: TRUE | T177: TRUE
A178: Newport Central45_64 | B178: Newport Central | C178: Aneurin Bevan LHB45_64 | D178: Aneurin Bevan LHB | E178: 45_64 | F178: 6593 | G178: 6259 | H178: =VLOOKUP(C178,'HB pops'!$A$2:$E$73,4,FALSE) -> 81293 | I178: =VLOOKUP(C178,'HB pops'!$A$2:$E$73,5,FALSE) -> 79632 | K178: Aneurin Bevan LHB | L178: Newport Central | M178: 45_64 | N178: 6593 | O178: 6259 | P178: TRUE | Q178: TRUE | R178: TRUE | S178: TRUE | T178: TRUE
A179: Newport Central65_74 | B179: Newport Central | C179: Aneurin Bevan LHB65_74 | D179: Aneurin Bevan LHB | E179: 65_74 | F179: 2180 | G179: 2332 | H179: =VLOOKUP(C179,'HB pops'!$A$2:$E$73,4,FALSE) -> 28989 | I179: =VLOOKUP(C179,'HB pops'!$A$2:$E$73,5,FALSE) -> 30334 | K179: Aneurin Bevan LHB | L179: Newport Central | M179: 65_74 | N179: 2180 | O179: 2332 | P179: TRUE | Q179: TRUE | R179: TRUE | S179: TRUE | T179: TRUE
A180: Newport Central75_84 | B180: Newport Central | C180: Aneurin Bevan LHB75_84 | D180: Aneurin Bevan LHB | E180: 75_84 | F180: 1195 | G180: 1497 | H180: =VLOOKUP(C180,'HB pops'!$A$2:$E$73,4,FALSE) -> 15460 | I180: =VLOOKUP(C180,'HB pops'!$A$2:$E$73,5,FALSE) -> 19165 | K180: Aneurin Bevan LHB | L180: Newport Central | M180: 75_84 | N180: 1195 | O180: 1497 | P180: TRUE | Q180: TRUE | R180: TRUE | S180: TRUE | T180: TRUE
A181: Newport Central85+ | B181: Newport Central | C181: Aneurin Bevan LHB85+ | D181: Aneurin Bevan LHB | E181: 85+ | F181: 371 | G181: 766 | H181: =VLOOKUP(C181,'HB pops'!$A$2:$E$73,4,FALSE) -> 4468 | I181: =VLOOKUP(C181,'HB pops'!$A$2:$E$73,5,FALSE) -> 9313 | K181: Aneurin Bevan LHB | L181: Newport Central | M181: 85+ | N181: 371 | O181: 766 | P181: TRUE | Q181: TRUE | R181: TRUE | S181: TRUE | T181: TRUE
A182: Newport East00_02 | B182: Newport East | C182: Aneurin Bevan LHB00_02 | D182: Aneurin Bevan LHB | E182: 00_02 | F182: 896 | G182: 973 | H182: =VLOOKUP(C182,'HB pops'!$A$2:$E$73,4,FALSE) -> 10148 | I182: =VLOOKUP(C182,'HB pops'!$A$2:$E$73,5,FALSE) -> 9829 | K182: Aneurin Bevan LHB | L182: Newport East | M182: 00_02 | N182: 896 | O182: 973 | P182: TRUE | Q182: TRUE | R182: TRUE | S182: TRUE | T182: TRUE
A183: Newport East03_04 | B183: Newport East | C183: Aneurin Bevan LHB03_04 | D183: Aneurin Bevan LHB | E183: 03_04 | F183: 670 | G183: 600 | H183: =VLOOKUP(C183,'HB pops'!$A$2:$E$73,4,FALSE) -> 7247 | I183: =VLOOKUP(C183,'HB pops'!$A$2:$E$73,5,FALSE) -> 6724 | K183: Aneurin Bevan LHB | L183: Newport East | M183: 03_04 | N183: 670 | O183: 600 | P183: TRUE | Q183: TRUE | R183: TRUE | S183: TRUE | T183: TRUE
A184: Newport East05_14 | B184: Newport East | C184: Aneurin Bevan LHB05_14 | D184: Aneurin Bevan LHB | E184: 05_14 | F184: 2865 | G184: 2729 | H184: =VLOOKUP(C184,'HB pops'!$A$2:$E$73,4,FALSE) -> 34162 | I184: =VLOOKUP(C184,'HB pops'!$A$2:$E$73,5,FALSE) -> 32575 | K184: Aneurin Bevan LHB | L184: Newport East | M184: 05_14 | N184: 2865 | O184: 2729 | P184: TRUE | Q184: TRUE | R184: TRUE | S184: TRUE | T184: TRUE
A185: Newport East15_24 | B185: Newport East | C185: Aneurin Bevan LHB15_24 | D185: Aneurin Bevan LHB | E185: 15_24 | F185: 3392 | G185: 3213 | H185: =VLOOKUP(C185,'HB pops'!$A$2:$E$73,4,FALSE) -> 39331 | I185: =VLOOKUP(C185,'HB pops'!$A$2:$E$73,5,FALSE) -> 37293 | K185: Aneurin Bevan LHB | L185: Newport East | M185: 15_24 | N185: 3392 | O185: 3213 | P185: TRUE | Q185: TRUE | R185: TRUE | S185: TRUE | T185: TRUE
A186: Newport East25_44 | B186: Newport East | C186: Aneurin Bevan LHB25_44 | D186: Aneurin Bevan LHB | E186: 25_44 | F186: 6568 | G186: 6110 | H186: =VLOOKUP(C186,'HB pops'!$A$2:$E$73,4,FALSE) -> 76729 | I186: =VLOOKUP(C186,'HB pops'!$A$2:$E$73,5,FALSE) -> 74824 | K186: Aneurin Bevan LHB | L186: Newport East | M186: 25_44 | N186: 6568 | O186: 6110 | P186: TRUE | Q186: TRUE | R186: TRUE | S186: TRUE | T186: TRUE
A187: Newport East45_64 | B187: Newport East | C187: Aneurin Bevan LHB45_64 | D187: Aneurin Bevan LHB | E187: 45_64 | F187: 6260 | G187: 5733 | H187: =VLOOKUP(C187,'HB pops'!$A$2:$E$73,4,FALSE) -> 81293 | I187: =VLOOKUP(C187,'HB pops'!$A$2:$E$73,5,FALSE) -> 79632 | K187: Aneurin Bevan LHB | L187: Newport East | M187: 45_64 | N187: 6260 | O187: 5733 | P187: TRUE | Q187: TRUE | R187: TRUE | S187: TRUE | T187: TRUE
A188: Newport East65_74 | B188: Newport East | C188: Aneurin Bevan LHB65_74 | D188: Aneurin Bevan LHB | E188: 65_74 | F188: 1959 | G188: 2101 | H188: =VLOOKUP(C188,'HB pops'!$A$2:$E$73,4,FALSE) -> 28989 | I188: =VLOOKUP(C188,'HB pops'!$A$2:$E$73,5,FALSE) -> 30334 | K188: Aneurin Bevan LHB | L188: Newport East | M188: 65_74 | N188: 1959 | O188: 2101 | P188: TRUE | Q188: TRUE | R188: TRUE | S188: TRUE | T188: TRUE
A189: Newport East75_84 | B189: Newport East | C189: Aneurin Bevan LHB75_84 | D189: Aneurin Bevan LHB | E189: 75_84 | F189: 1267 | G189: 1524 | H189: =VLOOKUP(C189,'HB pops'!$A$2:$E$73,4,FALSE) -> 15460 | I189: =VLOOKUP(C189,'HB pops'!$A$2:$E$73,5,FALSE) -> 19165 | K189: Aneurin Bevan LHB | L189: Newport East | M189: 75_84 | N189: 1267 | O189: 1524 | P189: TRUE | Q189: TRUE | R189: TRUE | S189: TRUE | T189: TRUE
A190: Newport East85+ | B190: Newport East | C190: Aneurin Bevan LHB85+ | D190: Aneurin Bevan LHB | E190: 85+ | F190: 382 | G190: 575 | H190: =VLOOKUP(C190,'HB pops'!$A$2:$E$73,4,FALSE) -> 4468 | I190: =VLOOKUP(C190,'HB pops'!$A$2:$E$73,5,FALSE) -> 9313 | K190: Aneurin Bevan LHB | L190: Newport East | M190: 85+ | N190: 382 | O190: 575 | P190: TRUE | Q190: TRUE | R190: TRUE | S190: TRUE | T190: TRUE
A191: Newport West00_02 | B191: Newport West | C191: Aneurin Bevan LHB00_02 | D191: Aneurin Bevan LHB | E191: 00_02 | F191: 1054 | G191: 995 | H191: =VLOOKUP(C191,'HB pops'!$A$2:$E$73,4,FALSE) -> 10148 | I191: =VLOOKUP(C191,'HB pops'!$A$2:$E$73,5,FALSE) -> 9829 | K191: Aneurin Bevan LHB | L191: Newport West | M191: 00_02 | N191: 1054 | O191: 995 | P191: TRUE | Q191: TRUE | R191: TRUE | S191: TRUE | T191: TRUE
A192: Newport West03_04 | B192: Newport West | C192: Aneurin Bevan LHB03_04 | D192: Aneurin Bevan LHB | E192: 03_04 | F192: 715 | G192: 642 | H192: =VLOOKUP(C192,'HB pops'!$A$2:$E$73,4,FALSE) -> 7247 | I192: =VLOOKUP(C192,'HB pops'!$A$2:$E$73,5,FALSE) -> 6724 | K192: Aneurin Bevan LHB | L192: Newport West | M192: 03_04 | N192: 715 | O192: 642 | P192: TRUE | Q192: TRUE | R192: TRUE | S192: TRUE | T192: TRUE
A193: Newport West05_14 | B193: Newport West | C193: Aneurin Bevan LHB05_14 | D193: Aneurin Bevan LHB | E193: 05_14 | F193: 3103 | G193: 2931 | H193: =VLOOKUP(C193,'HB pops'!$A$2:$E$73,4,FALSE) -> 34162 | I193: =VLOOKUP(C193,'HB pops'!$A$2:$E$73,5,FALSE) -> 32575 | K193: Aneurin Bevan LHB | L193: Newport West | M193: 05_14 | N193: 3103 | O193: 2931 | P193: TRUE | Q193: TRUE | R193: TRUE | S193: TRUE | T193: TRUE
A194: Newport West15_24 | B194: Newport West | C194: Aneurin Bevan LHB15_24 | D194: Aneurin Bevan LHB | E194: 15_24 | F194: 3648 | G194: 3488 | H194: =VLOOKUP(C194,'HB pops'!$A$2:$E$73,4,FALSE) -> 39331 | I194: =VLOOKUP(C194,'HB pops'!$A$2:$E$73,5,FALSE) -> 37293 | K194: Aneurin Bevan LHB | L194: Newport West | M194: 15_24 | N194: 3648 | O194: 3488 | P194: TRUE | Q194: TRUE | R194: TRUE | S194: TRUE | T194: TRUE
A195: =B195&E195 -> Newport West25_44 | B195: Newport West | C195: =D195&E195 -> Aneurin Bevan LHB25_44 | D195: Aneurin Bevan LHB | E195: 25_44 | F195: 7462 | G195: 6912 | H195: =VLOOKUP(C195,'HB pops'!$A$2:$E$73,4,FALSE) -> 76729 | I195: =VLOOKUP(C195,'HB pops'!$A$2:$E$73,5,FALSE) -> 74824 | K195: Aneurin Bevan LHB | L195: Newport West | M195: 25_44 | N195: 7462 | O195: 6912 | P195: TRUE | Q195: TRUE | R195: TRUE | S195: TRUE | T195: TRUE
A196: Newport West45_64 | B196: Newport West | C196: Aneurin Bevan LHB45_64 | D196: Aneurin Bevan LHB | E196: 45_64 | F196: 6376 | G196: 6167 | H196: =VLOOKUP(C196,'HB pops'!$A$2:$E$73,4,FALSE) -> 81293 | I196: =VLOOKUP(C196,'HB pops'!$A$2:$E$73,5,FALSE) -> 79632 | K196: Aneurin Bevan LHB | L196: Newport West | M196: 45_64 | N196: 6376 | O196: 6167 | P196: TRUE | Q196: TRUE | R196: TRUE | S196: TRUE | T196: TRUE
A197: Newport West65_74 | B197: Newport West | C197: Aneurin Bevan LHB65_74 | D197: Aneurin Bevan LHB | E197: 65_74 | F197: 2242 | G197: 2376 | H197: =VLOOKUP(C197,'HB pops'!$A$2:$E$73,4,FALSE) -> 28989 | I197: =VLOOKUP(C197,'HB pops'!$A$2:$E$73,5,FALSE) -> 30334 | K197: Aneurin Bevan LHB | L197: Newport West | M197: 65_74 | N197: 2242 | O197: 2376 | P197: TRUE | Q197: TRUE | R197: TRUE | S197: TRUE | T197: TRUE
A198: Newport West75_84 | B198: Newport West | C198: Aneurin Bevan LHB75_84 | D198: Aneurin Bevan LHB | E198: 75_84 | F198: 1235 | G198: 1564 | H198: =VLOOKUP(C198,'HB pops'!$A$2:$E$73,4,FALSE) -> 15460 | I198: =VLOOKUP(C198,'HB pops'!$A$2:$E$73,5,FALSE) -> 19165 | K198: Aneurin Bevan LHB | L198: Newport West | M198: 75_84 | N198: 1235 | O198: 1564 | P198: TRUE | Q198: TRUE | R198: TRUE | S198: TRUE | T198: TRUE
A199: Newport West85+ | B199: Newport West | C199: Aneurin Bevan LHB85+ | D199: Aneurin Bevan LHB | E199: 85+ | F199: 386 | G199: 861 | H199: =VLOOKUP(C199,'HB pops'!$A$2:$E$73,4,FALSE) -> 4468 | I199: =VLOOKUP(C199,'HB pops'!$A$2:$E$73,5,FALSE) -> 9313 | K199: Aneurin Bevan LHB | L199: Newport West | M199: 85+ | N199: 386 | O199: 861 | P199: TRUE | Q199: TRUE | R199: TRUE | S199: TRUE | T199: TRUE
A200: Torfaen North00_02 | B200: Torfaen North | C200: Aneurin Bevan LHB00_02 | D200: Aneurin Bevan LHB | E200: 00_02 | F200: 845 | G200: 855 | H200: =VLOOKUP(C200,'HB pops'!$A$2:$E$73,4,FALSE) -> 10148 | I200: =VLOOKUP(C200,'HB pops'!$A$2:$E$73,5,FALSE) -> 9829 | K200: Aneurin Bevan LHB | L200: Torfaen North | M200: 00_02 | N200: 845 | O200: 855 | P200: TRUE | Q200: TRUE | R200: TRUE | S200: TRUE | T200: TRUE
... 387 more rows

Sheet HB pops (hidden)
A1: HB age | B1: Local Health Board | C1: age | D1: Males | E1: Females
A2: =B2&C2 -> NULL00_02 | B2: NULL | C2: 00_02 | D2: 236 | E2: 209
A3: =B3&C3 -> NULL03_04 | B3: NULL | C3: 03_04 | D3: 195 | E3: 162
A4: NULL05_14 | B4: NULL | C4: 05_14 | D4: 934 | E4: 907
A5: NULL15_24 | B5: NULL | C5: 15_24 | D5: 1404 | E5: 1435
A6: NULL25_44 | B6: NULL | C6: 25_44 | D6: 3092 | E6: 3126
A7: NULL45_64 | B7: NULL | C7: 45_64 | D7: 2874 | E7: 2680
A8: NULL65_74 | B8: NULL | C8: 65_74 | D8: 962 | E8: 927
A9: NULL75_84 | B9: NULL | C9: 75_84 | D9: 498 | E9: 559
A10: NULL85+ | B10: NULL | C10: 85+ | D10: 166 | E10: 259 | G10: Local Health Board | H10: age_group | I10: Males | J10: Females
A11: Abertawe Bro Morgannwg University LHB00_02 | B11: Abertawe Bro Morgannwg University LHB | C11: 00_02 | D11: 9116 | E11: 8539 | G11: Abertawe Bro Morgannwg University LHB | H11: 00_02 | I11: 9116 | J11: 8539 | K11: =G11=B11 -> TRUE | L11: =H11=C11 -> TRUE | M11: =I11=D11 -> TRUE | N11: =J11=E11 -> TRUE
A12: Abertawe Bro Morgannwg University LHB03_04 | B12: Abertawe Bro Morgannwg University LHB | C12: 03_04 | D12: 6284 | E12: 5757 | G12: Abertawe Bro Morgannwg University LHB | H12: 03_04 | I12: 6284 | J12: 5757 | K12: =G12=B12 -> TRUE | L12: =H12=C12 -> TRUE | M12: =I12=D12 -> TRUE | N12: =J12=E12 -> TRUE
A13: Abertawe Bro Morgannwg University LHB05_14 | B13: Abertawe Bro Morgannwg University LHB | C13: 05_14 | D13: 29673 | E13: 28118 | G13: Abertawe Bro Morgannwg University LHB | H13: 05_14 | I13: 29673 | J13: 28118 | K13: TRUE | L13: TRUE | M13: TRUE | N13: TRUE
A14: Abertawe Bro Morgannwg University LHB15_24 | B14: Abertawe Bro Morgannwg University LHB | C14: 15_24 | D14: 36992 | E14: 34588 | G14: Abertawe Bro Morgannwg University LHB | H14: 15_24 | I14: 36992 | J14: 34588 | K14: TRUE | L14: TRUE | M14: TRUE | N14: TRUE
A15: Abertawe Bro Morgannwg University LHB25_44 | B15: Abertawe Bro Morgannwg University LHB | C15: 25_44 | D15: 71125 | E15: 67753 | G15: Abertawe Bro Morgannwg University LHB | H15: 25_44 | I15: 71125 | J15: 67753 | K15: TRUE | L15: TRUE | M15: TRUE | N15: TRUE
A16: Abertawe Bro Morgannwg University LHB45_64 | B16: Abertawe Bro Morgannwg University LHB | C16: 45_64 | D16: 72111 | E16: 70992 | G16: Abertawe Bro Morgannwg University LHB | H16: 45_64 | I16: 72111 | J16: 70992 | K16: TRUE | L16: TRUE | M16: TRUE | N16: TRUE
A17: Abertawe Bro Morgannwg University LHB65_74 | B17: Abertawe Bro Morgannwg University LHB | C17: 65_74 | D17: 26093 | E17: 27993 | G17: Abertawe Bro Morgannwg University LHB | H17: 65_74 | I17: 26093 | J17: 27993 | K17: TRUE | L17: TRUE | M17: TRUE | N17: TRUE
A18: Abertawe Bro Morgannwg University LHB75_84 | B18: Abertawe Bro Morgannwg University LHB | C18: 75_84 | D18: 14828 | E18: 18662 | G18: Abertawe Bro Morgannwg University LHB | H18: 75_84 | I18: 14828 | J18: 18662 | K18: TRUE | L18: TRUE | M18: TRUE | N18: TRUE
A19: Abertawe Bro Morgannwg University LHB85+ | B19: Abertawe Bro Morgannwg University LHB | C19: 85+ | D19: 4587 | E19: 8957 | G19: Abertawe Bro Morgannwg University LHB | H19: 85+ | I19: 4587 | J19: 8957 | K19: TRUE | L19: TRUE | M19: TRUE | N19: TRUE
A20: Aneurin Bevan LHB00_02 | B20: Aneurin Bevan LHB | C20: 00_02 | D20: 10148 | E20: 9829 | G20: Aneurin Bevan LHB | H20: 00_02 | I20: 10148 | J20: 9829 | K20: TRUE | L20: TRUE | M20: TRUE | N20: TRUE
A21: Aneurin Bevan LHB03_04 | B21: Aneurin Bevan LHB | C21: 03_04 | D21: 7247 | E21: 6724 | G21: Aneurin Bevan LHB | H21: 03_04 | I21: 7247 | J21: 6724 | K21: TRUE | L21: TRUE | M21: TRUE | N21: TRUE
A22: Aneurin Bevan LHB05_14 | B22: Aneurin Bevan LHB | C22: 05_14 | D22: 34162 | E22: 32575 | G22: Aneurin Bevan LHB | H22: 05_14 | I22: 34162 | J22: 32575 | K22: TRUE | L22: TRUE | M22: TRUE | N22: TRUE
A23: Aneurin Bevan LHB15_24 | B23: Aneurin Bevan LHB | C23: 15_24 | D23: 39331 | E23: 37293 | G23: Aneurin Bevan LHB | H23: 15_24 | I23: 39331 | J23: 37293 | K23: TRUE | L23: TRUE | M23: TRUE | N23: TRUE
A24: Aneurin Bevan LHB25_44 | B24: Aneurin Bevan LHB | C24: 25_44 | D24: 76729 | E24: 74824 | G24: Aneurin Bevan LHB | H24: 25_44 | I24: 76729 | J24: 74824 | K24: TRUE | L24: TRUE | M24: TRUE | N24: TRUE
A25: Aneurin Bevan LHB45_64 | B25: Aneurin Bevan LHB | C25: 45_64 | D25: 81293 | E25: 79632 | G25: Aneurin Bevan LHB | H25: 45_64 | I25: 81293 | J25: 79632 | K25: TRUE | L25: TRUE | M25: TRUE | N25: TRUE
A26: Aneurin Bevan LHB65_74 | B26: Aneurin Bevan LHB | C26: 65_74 | D26: 28989 | E26: 30334 | G26: Aneurin Bevan LHB | H26: 65_74 | I26: 28989 | J26: 30334 | K26: TRUE | L26: TRUE | M26: TRUE | N26: TRUE
A27: Aneurin Bevan LHB75_84 | B27: Aneurin Bevan LHB | C27: 75_84 | D27: 15460 | E27: 19165 | G27: Aneurin Bevan LHB | H27: 75_84 | I27: 15460 | J27: 19165 | K27: TRUE | L27: TRUE | M27: TRUE | N27: TRUE
A28: Aneurin Bevan LHB85+ | B28: Aneurin Bevan LHB | C28: 85+ | D28: 4468 | E28: 9313 | G28: Aneurin Bevan LHB | H28: 85+ | I28: 4468 | J28: 9313 | K28: TRUE | L28: TRUE | M28: TRUE | N28: TRUE
A29: Betsi Cadwaladr University LHB00_02 | B29: Betsi Cadwaladr University LHB | C29: 00_02 | D29: 11668 | E29: 11090 | G29: Betsi Cadwaladr University LHB | H29: 00_02 | I29: 11668 | J29: 11090 | K29: TRUE | L29: TRUE | M29: TRUE | N29: TRUE
A30: Betsi Cadwaladr University LHB03_04 | B30: Betsi Cadwaladr University LHB | C30: 03_04 | D30: 7958 | E30: 7695 | G30: Betsi Cadwaladr University LHB | H30: 03_04 | I30: 7958 | J30: 7695 | K30: TRUE | L30: TRUE | M30: TRUE | N30: TRUE
A31: Betsi Cadwaladr University LHB05_14 | B31: Betsi Cadwaladr University LHB | C31: 05_14 | D31: 38681 | E31: 36601 | G31: Betsi Cadwaladr University LHB | H31: 05_14 | I31: 38681 | J31: 36601 | K31: TRUE | L31: TRUE | M31: TRUE | N31: TRUE
A32: Betsi Cadwaladr University LHB15_24 | B32: Betsi Cadwaladr University LHB | C32: 15_24 | D32: 44469 | E32: 42171 | G32: Betsi Cadwaladr University LHB | H32: 15_24 | I32: 44469 | J32: 42171 | K32: TRUE | L32: TRUE | M32: TRUE | N32: TRUE
A33: Betsi Cadwaladr University LHB25_44 | B33: Betsi Cadwaladr University LHB | C33: 25_44 | D33: 86593 | E33: 83313 | G33: Betsi Cadwaladr University LHB | H33: 25_44 | I33: 86593 | J33: 83313 | K33: TRUE | L33: TRUE | M33: TRUE | N33: TRUE
A34: Betsi Cadwaladr University LHB45_64 | B34: Betsi Cadwaladr University LHB | C34: 45_64 | D34: 95574 | E34: 94390 | G34: Betsi Cadwaladr University LHB | H34: 45_64 | I34: 95574 | J34: 94390 | K34: TRUE | L34: TRUE | M34: TRUE | N34: TRUE
A35: Betsi Cadwaladr University LHB65_74 | B35: Betsi Cadwaladr University LHB | C35: 65_74 | D35: 37994 | E35: 40008 | G35: Betsi Cadwaladr University LHB | H35: 65_74 | I35: 37994 | J35: 40008 | K35: TRUE | L35: TRUE | M35: TRUE | N35: TRUE
A36: Betsi Cadwaladr University LHB75_84 | B36: Betsi Cadwaladr University LHB | C36: 75_84 | D36: 20623 | E36: 25717 | G36: Betsi Cadwaladr University LHB | H36: 75_84 | I36: 20623 | J36: 25717 | K36: TRUE | L36: TRUE | M36: TRUE | N36: TRUE
A37: Betsi Cadwaladr University LHB85+ | B37: Betsi Cadwaladr University LHB | C37: 85+ | D37: 6296 | E37: 13110 | G37: Betsi Cadwaladr University LHB | H37: 85+ | I37: 6296 | J37: 13110 | K37: TRUE | L37: TRUE | M37: TRUE | N37: TRUE
A38: Cardiff and Vale University LHB00_02 | B38: Cardiff and Vale University LHB | C38: 00_02 | D38: 9234 | E38: 8819 | G38: Cardiff and Vale University LHB | H38: 00_02 | I38: 9234 | J38: 8819 | K38: TRUE | L38: TRUE | M38: TRUE | N38: TRUE
A39: Cardiff and Vale University LHB03_04 | B39: Cardiff and Vale University LHB | C39: 03_04 | D39: 6236 | E39: 5962 | G39: Cardiff and Vale University LHB | H39: 03_04 | I39: 6236 | J39: 5962 | K39: TRUE | L39: TRUE | M39: TRUE | N39: TRUE
A40: Cardiff and Vale University LHB05_14 | B40: Cardiff and Vale University LHB | C40: 05_14 | D40: 27093 | E40: 26014 | G40: Cardiff and Vale University LHB | H40: 05_14 | I40: 27093 | J40: 26014 | K40: TRUE | L40: TRUE | M40: TRUE | N40: TRUE
A41: Cardiff and Vale University LHB15_24 | B41: Cardiff and Vale University LHB | C41: 15_24 | D41: 38100 | E41: 38944 | G41: Cardiff and Vale University LHB | H41: 15_24 | I41: 38100 | J41: 38944 | K41: TRUE | L41: TRUE | M41: TRUE | N41: TRUE
A42: Cardiff and Vale University LHB25_44 | B42: Cardiff and Vale University LHB | C42: 25_44 | D42: 77328 | E42: 70100 | G42: Cardiff and Vale University LHB | H42: 25_44 | I42: 77328 | J42: 70100 | K42: TRUE | L42: TRUE | M42: TRUE | N42: TRUE
A43: Cardiff and Vale University LHB45_64 | B43: Cardiff and Vale University LHB | C43: 45_64 | D43: 60628 | E43: 57152 | G43: Cardiff and Vale University LHB | H43: 45_64 | I43: 60628 | J43: 57152 | K43: TRUE | L43: TRUE | M43: TRUE | N43: TRUE
A44: Cardiff and Vale University LHB65_74 | B44: Cardiff and Vale University LHB | C44: 65_74 | D44: 18257 | E44: 19314 | G44: Cardiff and Vale University LHB | H44: 65_74 | I44: 18257 | J44: 19314 | K44: TRUE | L44: TRUE | M44: TRUE | N44: TRUE
A45: Cardiff and Vale University LHB75_84 | B45: Cardiff and Vale University LHB | C45: 75_84 | D45: 10562 | E45: 13593 | G45: Cardiff and Vale University LHB | H45: 75_84 | I45: 10562 | J45: 13593 | K45: TRUE | L45: TRUE | M45: TRUE | N45: TRUE
A46: Cardiff and Vale University LHB85+ | B46: Cardiff and Vale University LHB | C46: 85+ | D46: 3536 | E46: 7055 | G46: Cardiff and Vale University LHB | H46: 85+ | I46: 3536 | J46: 7055 | K46: TRUE | L46: TRUE | M46: TRUE | N46: TRUE
A47: Cwm Taf LHB00_02 | B47: Cwm Taf LHB | C47: 00_02 | D47: 5305 | E47: 5189 | G47: Cwm Taf LHB | H47: 00_02 | I47: 5305 | J47: 5189 | K47: TRUE | L47: TRUE | M47: TRUE | N47: TRUE
A48: Cwm Taf LHB03_04 | B48: Cwm Taf LHB | C48: 03_04 | D48: 3711 | E48: 3609 | G48: Cwm Taf LHB | H48: 03_04 | I48: 3711 | J48: 3609 | K48: TRUE | L48: TRUE | M48: TRUE | N48: TRUE
A49: Cwm Taf LHB05_14 | B49: Cwm Taf LHB | C49: 05_14 | D49: 17228 | E49: 16308 | G49: Cwm Taf LHB | H49: 05_14 | I49: 17228 | J49: 16308 | K49: TRUE | L49: TRUE | M49: TRUE | N49: TRUE
A50: Cwm Taf LHB15_24 | B50: Cwm Taf LHB | C50: 15_24 | D50: 20099 | E50: 19344 | G50: Cwm Taf LHB | H50: 15_24 | I50: 20099 | J50: 19344 | K50: TRUE | L50: TRUE | M50: TRUE | N50: TRUE
A51: Cwm Taf LHB25_44 | B51: Cwm Taf LHB | C51: 25_44 | D51: 41431 | E51: 39269 | G51: Cwm Taf LHB | H51: 25_44 | I51: 41431 | J51: 39269 | K51: TRUE | L51: TRUE | M51: TRUE | N51: TRUE
A52: Cwm Taf LHB45_64 | B52: Cwm Taf LHB | C52: 45_64 | D52: 40262 | E52: 39398 | G52: Cwm Taf LHB | H52: 45_64 | I52: 40262 | J52: 39398 | K52: TRUE | L52: TRUE | M52: TRUE | N52: TRUE
A53: Cwm Taf LHB65_74 | B53: Cwm Taf LHB | C53: 65_74 | D53: 14371 | E53: 14912 | G53: Cwm Taf LHB | H53: 65_74 | I53: 14371 | J53: 14912 | K53: TRUE | L53: TRUE | M53: TRUE | N53: TRUE
A54: Cwm Taf LHB75_84 | B54: Cwm Taf LHB | C54: 75_84 | D54: 7374 | E54: 9394 | G54: Cwm Taf LHB | H54: 75_84 | I54: 7374 | J54: 9394 | K54: TRUE | L54: TRUE | M54: TRUE | N54: TRUE
A55: Cwm Taf LHB85+ | B55: Cwm Taf LHB | C55: 85+ | D55: 2033 | E55: 4459 | G55: Cwm Taf LHB | H55: 85+ | I55: 2033 | J55: 4459 | K55: TRUE | L55: TRUE | M55: TRUE | N55: TRUE
A56: Hywel Dda LHB00_02 | B56: Hywel Dda LHB | C56: 00_02 | D56: 5902 | E56: 5713 | G56: Hywel Dda LHB | H56: 00_02 | I56: 5902 | J56: 5713 | K56: TRUE | L56: TRUE | M56: TRUE | N56: TRUE
A57: Hywel Dda LHB03_04 | B57: Hywel Dda LHB | C57: 03_04 | D57: 4000 | E57: 3982 | G57: Hywel Dda LHB | H57: 03_04 | I57: 4000 | J57: 3982 | K57: TRUE | L57: TRUE | M57: TRUE | N57: TRUE
A58: Hywel Dda LHB05_14 | B58: Hywel Dda LHB | C58: 05_14 | D58: 20944 | E58: 19446 | G58: Hywel Dda LHB | H58: 05_14 | I58: 20944 | J58: 19446 | K58: TRUE | L58: TRUE | M58: TRUE | N58: TRUE
A59: Hywel Dda LHB15_24 | B59: Hywel Dda LHB | C59: 15_24 | D59: 26686 | E59: 24805 | G59: Hywel Dda LHB | H59: 15_24 | I59: 26686 | J59: 24805 | K59: TRUE | L59: TRUE | M59: TRUE | N59: TRUE
A60: Hywel Dda LHB25_44 | B60: Hywel Dda LHB | C60: 25_44 | D60: 44960 | E60: 43208 | G60: Hywel Dda LHB | H60: 25_44 | I60: 44960 | J60: 43208 | K60: TRUE | L60: TRUE | M60: TRUE | N60: TRUE
A61: Hywel Dda LHB45_64 | B61: Hywel Dda LHB | C61: 45_64 | D61: 53741 | E61: 53871 | G61: Hywel Dda LHB | H61: 45_64 | I61: 53741 | J61: 53871 | K61: TRUE | L61: TRUE | M61: TRUE | N61: TRUE
A62: Hywel Dda LHB65_74 | B62: Hywel Dda LHB | C62: 65_74 | D62: 22386 | E62: 23123 | G62: Hywel Dda LHB | H62: 65_74 | I62: 22386 | J62: 23123 | K62: TRUE | L62: TRUE | M62: TRUE | N62: TRUE
A63: Hywel Dda LHB75_84 | B63: Hywel Dda LHB | C63: 75_84 | D63: 12318 | E63: 14537 | G63: Hywel Dda LHB | H63: 75_84 | I63: 12318 | J63: 14537 | K63: TRUE | L63: TRUE | M63: TRUE | N63: TRUE
A64: Hywel Dda LHB85+ | B64: Hywel Dda LHB | C64: 85+ | D64: 3705 | E64: 7421 | G64: Hywel Dda LHB | H64: 85+ | I64: 3705 | J64: 7421 | K64: TRUE | L64: TRUE | M64: TRUE | N64: TRUE
A65: Powys Teaching LHB00_02 | B65: Powys Teaching LHB | C65: 00_02 | D65: 1882 | E65: 1896 | G65: Powys Teaching LHB | H65: 00_02 | I65: 1882 | J65: 1896 | K65: TRUE | L65: TRUE | M65: TRUE | N65: TRUE
A66: Powys Teaching LHB03_04 | B66: Powys Teaching LHB | C66: 03_04 | D66: 1435 | E66: 1320 | G66: Powys Teaching LHB | H66: 03_04 | I66: 1435 | J66: 1320 | K66: TRUE | L66: TRUE | M66: TRUE | N66: TRUE
A67: =B67&C67 -> Powys Teaching LHB05_14 | B67: Powys Teaching LHB | C67: 05_14 | D67: 7359 | E67: 7004 | G67: Powys Teaching LHB | H67: 05_14 | I67: 7359 | J67: 7004 | K67: TRUE | L67: TRUE | M67: TRUE | N67: TRUE
A68: Powys Teaching LHB15_24 | B68: Powys Teaching LHB | C68: 15_24 | D68: 8108 | E68: 7212 | G68: Powys Teaching LHB | H68: 15_24 | I68: 8108 | J68: 7212 | K68: TRUE | L68: TRUE | M68: TRUE | N68: TRUE
A69: Powys Teaching LHB25_44 | B69: Powys Teaching LHB | C69: 25_44 | D69: 15036 | E69: 14621 | G69: Powys Teaching LHB | H69: 25_44 | I69: 15036 | J69: 14621 | K69: TRUE | L69: TRUE | M69: TRUE | N69: TRUE
A70: Powys Teaching LHB45_64 | B70: Powys Teaching LHB | C70: 45_64 | D70: 20224 | E70: 20354 | G70: Powys Teaching LHB | H70: 45_64 | I70: 20224 | J70: 20354 | K70: TRUE | L70: TRUE | M70: TRUE | N70: TRUE
A71: Powys Teaching LHB65_74 | B71: Powys Teaching LHB | C71: 65_74 | D71: 8703 | E71: 8819 | G71: Powys Teaching LHB | H71: 65_74 | I71: 8703 | J71: 8819 | K71: TRUE | L71: TRUE | M71: TRUE | N71: TRUE
A72: Powys Teaching LHB75_84 | B72: Powys Teaching LHB | C72: 75_84 | D72: 4802 | E72: 5589 | G72: Powys Teaching LHB | H72: 75_84 | I72: 4802 | J72: 5589 | K72: TRUE | L72: TRUE | M72: TRUE | N72: TRUE
A73: Powys Teaching LHB85+ | B73: Powys Teaching LHB | C73: 85+ | D73: 1474 | E73: 2830 | G73: Powys Teaching LHB | H73: 85+ | I73: 1474 | J73: 2830 | K73: TRUE | L73: TRUE | M73: TRUE | N73: TRUE
A74: Wales00_02 | B74: Wales | C74: 00_02 | D74: =D11+D20+D29+D38+D47+D56+D65 -> 53255 | E74: =E11+E20+E29+E38+E47+E56+E65 -> 51075
B75: Wales | C75: 03_04 | D75: =D12+D21+D30+D39+D48+D57+D66 -> 36871 | E75: 35049
B76: Wales | C76: 05_14 | D76: 175140 | E76: 166066
B77: Wales | C77: 15_24 | D77: 213785 | E77: 204357
B78: Wales | C78: 25_44 | D78: 413202 | E78: 393088
B79: Wales | C79: 45_64 | D79: 423833 | E79: 415789
B80: Wales | C80: 65_74 | D80: 156793 | E80: 164503
B81: Wales | C81: 75_84 | D81: 85967 | E81: 106657
B82: Wales | C82: 85+ | D82: 26099 | E82: 53145
